{"text_format":"3","workbook":"xlsx","n_sheets":3,"sheets":["All Children Enrolled 6 years+","Children Previously Enrolled","ReferenceLists"],"not_rendered":{"images":2},"read":"whole","date_system":"1900"}

{"sheet":"All Children Enrolled 6 years+","index":0,"n_rows":800,"n_cols":9,"rows_kept":800,"merged":[[2,2,2,3],[3,2,3,3],[4,2,4,3]]}
[null,null,{"$error":"#VALUE!"},"Independent Schools - Enrolment List",{"$nulls":4},{"$error":"#VALUE!"}]
[]
[null,"School Year"]
[null,"School Name"]
[null,"Address"]
[]
[null,"Student Surname","Student First Name","Date of Birth","Age","Class This School Year","Other Class Name (Optional)","R1 Form Submitted \n(with R2 form)","Notes (Additional Information if Required)"]
[{"$nulls":4},{"$f":"IF(NewlyEnrolled[[#This Row],[Date of Birth]]=\"\",\"\",INT((TODAY()-NewlyEnrolled[[#This Row],[Date of Birth]])/365.25))","v":""}]
[{"$nulls":4},{"$f":"IF(NewlyEnrolled[[#This Row],[Date of Birth]]=\"\",\"\",INT((TODAY()-NewlyEnrolled[[#This Row],[Date of Birth]])/365.25))","v":""}]
[{"$nulls":4},{"$f":"IF(NewlyEnrolled[[#This Row],[Date of Birth]]=\"\",\"\",INT((TODAY()-NewlyEnrolled[[#This Row],[Date of Birth]])/365.25))","v":""}]
[{"$nulls":4},{"$f":"IF(NewlyEnrolled[[#This Row],[Date of Birth]]=\"\",\"\",INT((TODAY()-NewlyEnrolled[[#This Row],[Date of Birth]])/365.25))","v":""}]
[{"$nulls":4},{"$f":"IF(NewlyEnrolled[[#This Row],[Date of Birth]]=\"\",\"\",INT((TODAY()-NewlyEnrolled[[#This Row],[Date of Birth]])/365.25))","v":""}]
[{"$nulls":4},{"$f":"IF(NewlyEnrolled[[#This Row],[Date of Birth]]=\"\",\"\",INT((TODAY()-NewlyEnrolled[[#This Row],[Date of Birth]])/365.25))","v":""}]
[{"$nulls":4},{"$f":"IF(NewlyEnrolled[[#This Row],[Date of Birth]]=\"\",\"\",INT((TODAY()-NewlyEnrolled[[#This Row],[Date of Birth]])/365.25))","v":""}]
[{"$nulls":4},{"$f":"IF(NewlyEnrolled[[#This Row],[Date of Birth]]=\"\",\"\",INT((TODAY()-NewlyEnrolled[[#This Row],[Date of Birth]])/365.25))","v":""}]
[{"$nulls":4},{"$f":"IF(NewlyEnrolled[[#This Row],[Date of Birth]]=\"\",\"\",INT((TODAY()-NewlyEnrolled[[#This Row],[Date of Birth]])/365.25))","v":""}]
[{"$nulls":4},{"$f":"IF(NewlyEnrolled[[#This Row],[Date of Birth]]=\"\",\"\",INT((TODAY()-NewlyEnrolled[[#This Row],[Date of Birth]])/365.25))","v":""}]
[{"$nulls":4},{"$f":"IF(NewlyEnrolled[[#This Row],[Date of Birth]]=\"\",\"\",INT((TODAY()-NewlyEnrolled[[#This Row],[Date of Birth]])/365.25))","v":""}]
[{"$nulls":4},{"$f":"IF(NewlyEnrolled[[#This Row],[Date of Birth]]=\"\",\"\",INT((TODAY()-NewlyEnrolled[[#This Row],[Date of Birth]])/365.25))","v":""}]
[{"$nulls":4},{"$f":"IF(NewlyEnrolled[[#This Row],[Date of Birth]]=\"\",\"\",INT((TODAY()-NewlyEnrolled[[#This Row],[Date of Birth]])/365.25))","v":""}]
[{"$nulls":4},{"$f":"IF(NewlyEnrolled[[#This Row],[Date of Birth]]=\"\",\"\",INT((TODAY()-NewlyEnrolled[[#This Row],[Date of Birth]])/365.25))","v":""}]
[{"$nulls":4},{"$f":"IF(NewlyEnrolled[[#This Row],[Date of Birth]]=\"\",\"\",INT((TODAY()-NewlyEnrolled[[#This Row],[Date of Birth]])/365.25))","v":""}]
[{"$nulls":4},{"$f":"IF(NewlyEnrolled[[#This Row],[Date of Birth]]=\"\",\"\",INT((TODAY()-NewlyEnrolled[[#This Row],[Date of Birth]])/365.25))","v":""}]
[{"$nulls":4},{"$f":"IF(NewlyEnrolled[[#This Row],[Date of Birth]]=\"\",\"\",INT((TODAY()-NewlyEnrolled[[#This Row],[Date of Birth]])/365.25))","v":""}]
[{"$nulls":4},{"$f":"IF(NewlyEnrolled[[#This Row],[Date of Birth]]=\"\",\"\",INT((TODAY()-NewlyEnrolled[[#This Row],[Date of Birth]])/365.25))","v":""}]
[{"$nulls":4},{"$f":"IF(NewlyEnrolled[[#This Row],[Date of Birth]]=\"\",\"\",INT((TODAY()-NewlyEnrolled[[#This Row],[Date of Birth]])/365.25))","v":""}]
[{"$nulls":4},{"$f":"IF(NewlyEnrolled[[#This Row],[Date of Birth]]=\"\",\"\",INT((TODAY()-NewlyEnrolled[[#This Row],[Date of Birth]])/365.25))","v":""}]
[{"$nulls":4},{"$f":"IF(NewlyEnrolled[[#This Row],[Date of Birth]]=\"\",\"\",INT((TODAY()-NewlyEnrolled[[#This Row],[Date of Birth]])/365.25))","v":""}]
[{"$nulls":4},{"$f":"IF(NewlyEnrolled[[#This Row],[Date of Birth]]=\"\",\"\",INT((TODAY()-NewlyEnrolled[[#This Row],[Date of Birth]])/365.25))","v":""}]
[{"$nulls":4},{"$f":"IF(NewlyEnrolled[[#This Row],[Date of Birth]]=\"\",\"\",INT((TODAY()-NewlyEnrolled[[#This Row],[Date of Birth]])/365.25))","v":""}]
[{"$nulls":4},{"$f":"IF(NewlyEnrolled[[#This Row],[Date of Birth]]=\"\",\"\",INT((TODAY()-NewlyEnrolled[[#This Row],[Date of Birth]])/365.25))","v":""}]
[{"$nulls":4},{"$f":"IF(NewlyEnrolled[[#This Row],[Date of Birth]]=\"\",\"\",INT((TODAY()-NewlyEnrolled[[#This Row],[Date of Birth]])/365.25))","v":""}]
[{"$nulls":4},{"$f":"IF(NewlyEnrolled[[#This Row],[Date of Birth]]=\"\",\"\",INT((TODAY()-NewlyEnrolled[[#This Row],[Date of Birth]])/365.25))","v":""}]
[{"$nulls":4},{"$f":"IF(NewlyEnrolled[[#This Row],[Date of Birth]]=\"\",\"\",INT((TODAY()-NewlyEnrolled[[#This Row],[Date of Birth]])/365.25))","v":""}]
[{"$nulls":4},{"$f":"IF(NewlyEnrolled[[#This Row],[Date of Birth]]=\"\",\"\",INT((TODAY()-NewlyEnrolled[[#This Row],[Date of Birth]])/365.25))","v":""}]
[{"$nulls":4},{"$f":"IF(NewlyEnrolled[[#This Row],[Date of Birth]]=\"\",\"\",INT((TODAY()-NewlyEnrolled[[#This Row],[Date of Birth]])/365.25))","v":""}]
[{"$nulls":4},{"$f":"IF(NewlyEnrolled[[#This Row],[Date of Birth]]=\"\",\"\",INT((TODAY()-NewlyEnrolled[[#This Row],[Date of Birth]])/365.25))","v":""}]
[{"$nulls":4},{"$f":"IF(NewlyEnrolled[[#This Row],[Date of Birth]]=\"\",\"\",INT((TODAY()-NewlyEnrolled[[#This Row],[Date of Birth]])/365.25))","v":""}]
[{"$nulls":4},{"$f":"IF(NewlyEnrolled[[#This Row],[Date of Birth]]=\"\",\"\",INT((TODAY()-NewlyEnrolled[[#This Row],[Date of Birth]])/365.25))","v":""}]
[{"$nulls":4},{"$f":"IF(NewlyEnrolled[[#This Row],[Date of Birth]]=\"\",\"\",INT((TODAY()-NewlyEnrolled[[#This Row],[Date of Birth]])/365.25))","v":""}]
[{"$nulls":4},{"$f":"IF(NewlyEnrolled[[#This Row],[Date of Birth]]=\"\",\"\",INT((TODAY()-NewlyEnrolled[[#This Row],[Date of Birth]])/365.25))","v":""}]
[{"$nulls":4},{"$f":"IF(NewlyEnrolled[[#This Row],[Date of Birth]]=\"\",\"\",INT((TODAY()-NewlyEnrolled[[#This Row],[Date of Birth]])/365.25))","v":""}]
[{"$nulls":4},{"$f":"IF(NewlyEnrolled[[#This Row],[Date of Birth]]=\"\",\"\",INT((TODAY()-NewlyEnrolled[[#This Row],[Date of Birth]])/365.25))","v":""}]
[{"$nulls":4},{"$f":"IF(NewlyEnrolled[[#This Row],[Date of Birth]]=\"\",\"\",INT((TODAY()-NewlyEnrolled[[#This Row],[Date of Birth]])/365.25))","v":""}]
[{"$nulls":4},{"$f":"IF(NewlyEnrolled[[#This Row],[Date of Birth]]=\"\",\"\",INT((TODAY()-NewlyEnrolled[[#This Row],[Date of Birth]])/365.25))","v":""}]
[{"$nulls":4},{"$f":"IF(NewlyEnrolled[[#This Row],[Date of Birth]]=\"\",\"\",INT((TODAY()-NewlyEnrolled[[#This Row],[Date of Birth]])/365.25))","v":""}]
[{"$nulls":4},{"$f":"IF(NewlyEnrolled[[#This Row],[Date of Birth]]=\"\",\"\",INT((TODAY()-NewlyEnrolled[[#This Row],[Date of Birth]])/365.25))","v":""}]
[{"$nulls":4},{"$f":"IF(NewlyEnrolled[[#This Row],[Date of Birth]]=\"\",\"\",INT((TODAY()-NewlyEnrolled[[#This Row],[Date of Birth]])/365.25))","v":""}]
[{"$nulls":4},{"$f":"IF(NewlyEnrolled[[#This Row],[Date of Birth]]=\"\",\"\",INT((TODAY()-NewlyEnrolled[[#This Row],[Date of Birth]])/365.25))","v":""}]
[{"$nulls":4},{"$f":"IF(NewlyEnrolled[[#This Row],[Date of Birth]]=\"\",\"\",INT((TODAY()-NewlyEnrolled[[#This Row],[Date of Birth]])/365.25))","v":""}]
[{"$nulls":4},{"$f":"IF(NewlyEnrolled[[#This Row],[Date of Birth]]=\"\",\"\",INT((TODAY()-NewlyEnrolled[[#This Row],[Date of Birth]])/365.25))","v":""}]
[{"$nulls":4},{"$f":"IF(NewlyEnrolled[[#This Row],[Date of Birth]]=\"\",\"\",INT((TODAY()-NewlyEnrolled[[#This Row],[Date of Birth]])/365.25))","v":""}]
[{"$nulls":4},{"$f":"IF(NewlyEnrolled[[#This Row],[Date of Birth]]=\"\",\"\",INT((TODAY()-NewlyEnrolled[[#This Row],[Date of Birth]])/365.25))","v":""}]
[{"$nulls":4},{"$f":"IF(NewlyEnrolled[[#This Row],[Date of Birth]]=\"\",\"\",INT((TODAY()-NewlyEnrolled[[#This Row],[Date of Birth]])/365.25))","v":""}]
[{"$nulls":4},{"$f":"IF(NewlyEnrolled[[#This Row],[Date of Birth]]=\"\",\"\",INT((TODAY()-NewlyEnrolled[[#This Row],[Date of Birth]])/365.25))","v":""}]
[{"$nulls":4},{"$f":"IF(NewlyEnrolled[[#This Row],[Date of Birth]]=\"\",\"\",INT((TODAY()-NewlyEnrolled[[#This Row],[Date of Birth]])/365.25))","v":""}]
[{"$nulls":4},{"$f":"IF(NewlyEnrolled[[#This Row],[Date of Birth]]=\"\",\"\",INT((TODAY()-NewlyEnrolled[[#This Row],[Date of Birth]])/365.25))","v":""}]
[{"$nulls":4},{"$f":"IF(NewlyEnrolled[[#This Row],[Date of Birth]]=\"\",\"\",INT((TODAY()-NewlyEnrolled[[#This Row],[Date of Birth]])/365.25))","v":""}]
[{"$nulls":4},{"$f":"IF(NewlyEnrolled[[#This Row],[Date of Birth]]=\"\",\"\",INT((TODAY()-NewlyEnrolled[[#This Row],[Date of Birth]])/365.25))","v":""}]
[{"$nulls":4},{"$f":"IF(NewlyEnrolled[[#This Row],[Date of Birth]]=\"\",\"\",INT((TODAY()-NewlyEnrolled[[#This Row],[Date of Birth]])/365.25))","v":""}]
[{"$nulls":4},{"$f":"IF(NewlyEnrolled[[#This Row],[Date of Birth]]=\"\",\"\",INT((TODAY()-NewlyEnrolled[[#This Row],[Date of Birth]])/365.25))","v":""}]
[{"$nulls":4},{"$f":"IF(NewlyEnrolled[[#This Row],[Date of Birth]]=\"\",\"\",INT((TODAY()-NewlyEnrolled[[#This Row],[Date of Birth]])/365.25))","v":""}]
[{"$nulls":4},{"$f":"IF(NewlyEnrolled[[#This Row],[Date of Birth]]=\"\",\"\",INT((TODAY()-NewlyEnrolled[[#This Row],[Date of Birth]])/365.25))","v":""}]
[{"$nulls":4},{"$f":"IF(NewlyEnrolled[[#This Row],[Date of Birth]]=\"\",\"\",INT((TODAY()-NewlyEnrolled[[#This Row],[Date of Birth]])/365.25))","v":""}]
[{"$nulls":4},{"$f":"IF(NewlyEnrolled[[#This Row],[Date of Birth]]=\"\",\"\",INT((TODAY()-NewlyEnrolled[[#This Row],[Date of Birth]])/365.25))","v":""}]
[{"$nulls":4},{"$f":"IF(NewlyEnrolled[[#This Row],[Date of Birth]]=\"\",\"\",INT((TODAY()-NewlyEnrolled[[#This Row],[Date of Birth]])/365.25))","v":""}]
[{"$nulls":4},{"$f":"IF(NewlyEnrolled[[#This Row],[Date of Birth]]=\"\",\"\",INT((TODAY()-NewlyEnrolled[[#This Row],[Date of Birth]])/365.25))","v":""}]
[{"$nulls":4},{"$f":"IF(NewlyEnrolled[[#This Row],[Date of Birth]]=\"\",\"\",INT((TODAY()-NewlyEnrolled[[#This Row],[Date of Birth]])/365.25))","v":""}]
[{"$nulls":4},{"$f":"IF(NewlyEnrolled[[#This Row],[Date of Birth]]=\"\",\"\",INT((TODAY()-NewlyEnrolled[[#This Row],[Date of Birth]])/365.25))","v":""}]
[{"$nulls":4},{"$f":"IF(NewlyEnrolled[[#This Row],[Date of Birth]]=\"\",\"\",INT((TODAY()-NewlyEnrolled[[#This Row],[Date of Birth]])/365.25))","v":""}]
[{"$nulls":4},{"$f":"IF(NewlyEnrolled[[#This Row],[Date of Birth]]=\"\",\"\",INT((TODAY()-NewlyEnrolled[[#This Row],[Date of Birth]])/365.25))","v":""}]
[{"$nulls":4},{"$f":"IF(NewlyEnrolled[[#This Row],[Date of Birth]]=\"\",\"\",INT((TODAY()-NewlyEnrolled[[#This Row],[Date of Birth]])/365.25))","v":""}]
[{"$nulls":4},{"$f":"IF(NewlyEnrolled[[#This Row],[Date of Birth]]=\"\",\"\",INT((TODAY()-NewlyEnrolled[[#This Row],[Date of Birth]])/365.25))","v":""}]
[{"$nulls":4},{"$f":"IF(NewlyEnrolled[[#This Row],[Date of Birth]]=\"\",\"\",INT((TODAY()-NewlyEnrolled[[#This Row],[Date of Birth]])/365.25))","v":""}]
[{"$nulls":4},{"$f":"IF(NewlyEnrolled[[#This Row],[Date of Birth]]=\"\",\"\",INT((TODAY()-NewlyEnrolled[[#This Row],[Date of Birth]])/365.25))","v":""}]
[{"$nulls":4},{"$f":"IF(NewlyEnrolled[[#This Row],[Date of Birth]]=\"\",\"\",INT((TODAY()-NewlyEnrolled[[#This Row],[Date of Birth]])/365.25))","v":""}]
[{"$nulls":4},{"$f":"IF(NewlyEnrolled[[#This Row],[Date of Birth]]=\"\",\"\",INT((TODAY()-NewlyEnrolled[[#This Row],[Date of Birth]])/365.25))","v":""}]
[{"$nulls":4},{"$f":"IF(NewlyEnrolled[[#This Row],[Date of Birth]]=\"\",\"\",INT((TODAY()-NewlyEnrolled[[#This Row],[Date of Birth]])/365.25))","v":""}]
[{"$nulls":4},{"$f":"IF(NewlyEnrolled[[#This Row],[Date of Birth]]=\"\",\"\",INT((TODAY()-NewlyEnrolled[[#This Row],[Date of Birth]])/365.25))","v":""}]
[{"$nulls":4},{"$f":"IF(NewlyEnrolled[[#This Row],[Date of Birth]]=\"\",\"\",INT((TODAY()-NewlyEnrolled[[#This Row],[Date of Birth]])/365.25))","v":""}]
[{"$nulls":4},{"$f":"IF(NewlyEnrolled[[#This Row],[Date of Birth]]=\"\",\"\",INT((TODAY()-NewlyEnrolled[[#This Row],[Date of Birth]])/365.25))","v":""}]
[{"$nulls":4},{"$f":"IF(NewlyEnrolled[[#This Row],[Date of Birth]]=\"\",\"\",INT((TODAY()-NewlyEnrolled[[#This Row],[Date of Birth]])/365.25))","v":""}]
[{"$nulls":4},{"$f":"IF(NewlyEnrolled[[#This Row],[Date of Birth]]=\"\",\"\",INT((TODAY()-NewlyEnrolled[[#This Row],[Date of Birth]])/365.25))","v":""}]
[{"$nulls":4},{"$f":"IF(NewlyEnrolled[[#This Row],[Date of Birth]]=\"\",\"\",INT((TODAY()-NewlyEnrolled[[#This Row],[Date of Birth]])/365.25))","v":""}]
[{"$nulls":4},{"$f":"IF(NewlyEnrolled[[#This Row],[Date of Birth]]=\"\",\"\",INT((TODAY()-NewlyEnrolled[[#This Row],[Date of Birth]])/365.25))","v":""}]
[{"$nulls":4},{"$f":"IF(NewlyEnrolled[[#This Row],[Date of Birth]]=\"\",\"\",INT((TODAY()-NewlyEnrolled[[#This Row],[Date of Birth]])/365.25))","v":""}]
[{"$nulls":4},{"$f":"IF(NewlyEnrolled[[#This Row],[Date of Birth]]=\"\",\"\",INT((TODAY()-NewlyEnrolled[[#This Row],[Date of Birth]])/365.25))","v":""}]
[{"$nulls":4},{"$f":"IF(NewlyEnrolled[[#This Row],[Date of Birth]]=\"\",\"\",INT((TODAY()-NewlyEnrolled[[#This Row],[Date of Birth]])/365.25))","v":""}]
[{"$nulls":4},{"$f":"IF(NewlyEnrolled[[#This Row],[Date of Birth]]=\"\",\"\",INT((TODAY()-NewlyEnrolled[[#This Row],[Date of Birth]])/365.25))","v":""}]
[{"$nulls":4},{"$f":"IF(NewlyEnrolled[[#This Row],[Date of Birth]]=\"\",\"\",INT((TODAY()-NewlyEnrolled[[#This Row],[Date of Birth]])/365.25))","v":""}]
[{"$nulls":4},{"$f":"IF(NewlyEnrolled[[#This Row],[Date of Birth]]=\"\",\"\",INT((TODAY()-NewlyEnrolled[[#This Row],[Date of Birth]])/365.25))","v":""}]
[{"$nulls":4},{"$f":"IF(NewlyEnrolled[[#This Row],[Date of Birth]]=\"\",\"\",INT((TODAY()-NewlyEnrolled[[#This Row],[Date of Birth]])/365.25))","v":""}]
[{"$nulls":4},{"$f":"IF(NewlyEnrolled[[#This Row],[Date of Birth]]=\"\",\"\",INT((TODAY()-NewlyEnrolled[[#This Row],[Date of Birth]])/365.25))","v":""}]
[{"$nulls":4},{"$f":"IF(NewlyEnrolled[[#This Row],[Date of Birth]]=\"\",\"\",INT((TODAY()-NewlyEnrolled[[#This Row],[Date of Birth]])/365.25))","v":""}]
[{"$nulls":4},{"$f":"IF(NewlyEnrolled[[#This Row],[Date of Birth]]=\"\",\"\",INT((TODAY()-NewlyEnrolled[[#This Row],[Date of Birth]])/365.25))","v":""}]
[{"$nulls":4},{"$f":"IF(NewlyEnrolled[[#This Row],[Date of Birth]]=\"\",\"\",INT((TODAY()-NewlyEnrolled[[#This Row],[Date of Birth]])/365.25))","v":""}]
[{"$nulls":4},{"$f":"IF(NewlyEnrolled[[#This Row],[Date of Birth]]=\"\",\"\",INT((TODAY()-NewlyEnrolled[[#This Row],[Date of Birth]])/365.25))","v":""}]
[{"$nulls":4},{"$f":"IF(NewlyEnrolled[[#This Row],[Date of Birth]]=\"\",\"\",INT((TODAY()-NewlyEnrolled[[#This Row],[Date of Birth]])/365.25))","v":""}]
[{"$nulls":4},{"$f":"IF(NewlyEnrolled[[#This Row],[Date of Birth]]=\"\",\"\",INT((TODAY()-NewlyEnrolled[[#This Row],[Date of Birth]])/365.25))","v":""}]
[{"$nulls":4},{"$f":"IF(NewlyEnrolled[[#This Row],[Date of Birth]]=\"\",\"\",INT((TODAY()-NewlyEnrolled[[#This Row],[Date of Birth]])/365.25))","v":""}]
[{"$nulls":4},{"$f":"IF(NewlyEnrolled[[#This Row],[Date of Birth]]=\"\",\"\",INT((TODAY()-NewlyEnrolled[[#This Row],[Date of Birth]])/365.25))","v":""}]
[{"$nulls":4},{"$f":"IF(NewlyEnrolled[[#This Row],[Date of Birth]]=\"\",\"\",INT((TODAY()-NewlyEnrolled[[#This Row],[Date of Birth]])/365.25))","v":""}]
[{"$nulls":4},{"$f":"IF(NewlyEnrolled[[#This Row],[Date of Birth]]=\"\",\"\",INT((TODAY()-NewlyEnrolled[[#This Row],[Date of Birth]])/365.25))","v":""}]
[{"$nulls":4},{"$f":"IF(NewlyEnrolled[[#This Row],[Date of Birth]]=\"\",\"\",INT((TODAY()-NewlyEnrolled[[#This Row],[Date of Birth]])/365.25))","v":""}]
[{"$nulls":4},{"$f":"IF(NewlyEnrolled[[#This Row],[Date of Birth]]=\"\",\"\",INT((TODAY()-NewlyEnrolled[[#This Row],[Date of Birth]])/365.25))","v":""}]
[{"$nulls":4},{"$f":"IF(NewlyEnrolled[[#This Row],[Date of Birth]]=\"\",\"\",INT((TODAY()-NewlyEnrolled[[#This Row],[Date of Birth]])/365.25))","v":""}]
[{"$nulls":4},{"$f":"IF(NewlyEnrolled[[#This Row],[Date of Birth]]=\"\",\"\",INT((TODAY()-NewlyEnrolled[[#This Row],[Date of Birth]])/365.25))","v":""}]
[{"$nulls":4},{"$f":"IF(NewlyEnrolled[[#This Row],[Date of Birth]]=\"\",\"\",INT((TODAY()-NewlyEnrolled[[#This Row],[Date of Birth]])/365.25))","v":""}]
[{"$nulls":4},{"$f":"IF(NewlyEnrolled[[#This Row],[Date of Birth]]=\"\",\"\",INT((TODAY()-NewlyEnrolled[[#This Row],[Date of Birth]])/365.25))","v":""}]
[{"$nulls":4},{"$f":"IF(NewlyEnrolled[[#This Row],[Date of Birth]]=\"\",\"\",INT((TODAY()-NewlyEnrolled[[#This Row],[Date of Birth]])/365.25))","v":""}]
[{"$nulls":4},{"$f":"IF(NewlyEnrolled[[#This Row],[Date of Birth]]=\"\",\"\",INT((TODAY()-NewlyEnrolled[[#This Row],[Date of Birth]])/365.25))","v":""}]
[{"$nulls":4},{"$f":"IF(NewlyEnrolled[[#This Row],[Date of Birth]]=\"\",\"\",INT((TODAY()-NewlyEnrolled[[#This Row],[Date of Birth]])/365.25))","v":""}]
[{"$nulls":4},{"$f":"IF(NewlyEnrolled[[#This Row],[Date of Birth]]=\"\",\"\",INT((TODAY()-NewlyEnrolled[[#This Row],[Date of Birth]])/365.25))","v":""}]
[{"$nulls":4},{"$f":"IF(NewlyEnrolled[[#This Row],[Date of Birth]]=\"\",\"\",INT((TODAY()-NewlyEnrolled[[#This Row],[Date of Birth]])/365.25))","v":""}]
[{"$nulls":4},{"$f":"IF(NewlyEnrolled[[#This Row],[Date of Birth]]=\"\",\"\",INT((TODAY()-NewlyEnrolled[[#This Row],[Date of Birth]])/365.25))","v":""}]
[{"$nulls":4},{"$f":"IF(NewlyEnrolled[[#This Row],[Date of Birth]]=\"\",\"\",INT((TODAY()-NewlyEnrolled[[#This Row],[Date of Birth]])/365.25))","v":""}]
[{"$nulls":4},{"$f":"IF(NewlyEnrolled[[#This Row],[Date of Birth]]=\"\",\"\",INT((TODAY()-NewlyEnrolled[[#This Row],[Date of Birth]])/365.25))","v":""}]
[{"$nulls":4},{"$f":"IF(NewlyEnrolled[[#This Row],[Date of Birth]]=\"\",\"\",INT((TODAY()-NewlyEnrolled[[#This Row],[Date of Birth]])/365.25))","v":""}]
[{"$nulls":4},{"$f":"IF(NewlyEnrolled[[#This Row],[Date of Birth]]=\"\",\"\",INT((TODAY()-NewlyEnrolled[[#This Row],[Date of Birth]])/365.25))","v":""}]
[{"$nulls":4},{"$f":"IF(NewlyEnrolled[[#This Row],[Date of Birth]]=\"\",\"\",INT((TODAY()-NewlyEnrolled[[#This Row],[Date of Birth]])/365.25))","v":""}]
[{"$nulls":4},{"$f":"IF(NewlyEnrolled[[#This Row],[Date of Birth]]=\"\",\"\",INT((TODAY()-NewlyEnrolled[[#This Row],[Date of Birth]])/365.25))","v":""}]
[{"$nulls":4},{"$f":"IF(NewlyEnrolled[[#This Row],[Date of Birth]]=\"\",\"\",INT((TODAY()-NewlyEnrolled[[#This Row],[Date of Birth]])/365.25))","v":""}]
[{"$nulls":4},{"$f":"IF(NewlyEnrolled[[#This Row],[Date of Birth]]=\"\",\"\",INT((TODAY()-NewlyEnrolled[[#This Row],[Date of Birth]])/365.25))","v":""}]
[{"$nulls":4},{"$f":"IF(NewlyEnrolled[[#This Row],[Date of Birth]]=\"\",\"\",INT((TODAY()-NewlyEnrolled[[#This Row],[Date of Birth]])/365.25))","v":""}]
[{"$nulls":4},{"$f":"IF(NewlyEnrolled[[#This Row],[Date of Birth]]=\"\",\"\",INT((TODAY()-NewlyEnrolled[[#This Row],[Date of Birth]])/365.25))","v":""}]
[{"$nulls":4},{"$f":"IF(NewlyEnrolled[[#This Row],[Date of Birth]]=\"\",\"\",INT((TODAY()-NewlyEnrolled[[#This Row],[Date of Birth]])/365.25))","v":""}]
[{"$nulls":4},{"$f":"IF(NewlyEnrolled[[#This Row],[Date of Birth]]=\"\",\"\",INT((TODAY()-NewlyEnrolled[[#This Row],[Date of Birth]])/365.25))","v":""}]
[{"$nulls":4},{"$f":"IF(NewlyEnrolled[[#This Row],[Date of Birth]]=\"\",\"\",INT((TODAY()-NewlyEnrolled[[#This Row],[Date of Birth]])/365.25))","v":""}]
[{"$nulls":4},{"$f":"IF(NewlyEnrolled[[#This Row],[Date of Birth]]=\"\",\"\",INT((TODAY()-NewlyEnrolled[[#This Row],[Date of Birth]])/365.25))","v":""}]
[{"$nulls":4},{"$f":"IF(NewlyEnrolled[[#This Row],[Date of Birth]]=\"\",\"\",INT((TODAY()-NewlyEnrolled[[#This Row],[Date of Birth]])/365.25))","v":""}]
[{"$nulls":4},{"$f":"IF(NewlyEnrolled[[#This Row],[Date of Birth]]=\"\",\"\",INT((TODAY()-NewlyEnrolled[[#This Row],[Date of Birth]])/365.25))","v":""}]
[{"$nulls":4},{"$f":"IF(NewlyEnrolled[[#This Row],[Date of Birth]]=\"\",\"\",INT((TODAY()-NewlyEnrolled[[#This Row],[Date of Birth]])/365.25))","v":""}]
[{"$nulls":4},{"$f":"IF(NewlyEnrolled[[#This Row],[Date of Birth]]=\"\",\"\",INT((TODAY()-NewlyEnrolled[[#This Row],[Date of Birth]])/365.25))","v":""}]
[{"$nulls":4},{"$f":"IF(NewlyEnrolled[[#This Row],[Date of Birth]]=\"\",\"\",INT((TODAY()-NewlyEnrolled[[#This Row],[Date of Birth]])/365.25))","v":""}]
[{"$nulls":4},{"$f":"IF(NewlyEnrolled[[#This Row],[Date of Birth]]=\"\",\"\",INT((TODAY()-NewlyEnrolled[[#This Row],[Date of Birth]])/365.25))","v":""}]
[{"$nulls":4},{"$f":"IF(NewlyEnrolled[[#This Row],[Date of Birth]]=\"\",\"\",INT((TODAY()-NewlyEnrolled[[#This Row],[Date of Birth]])/365.25))","v":""}]
[{"$nulls":4},{"$f":"IF(NewlyEnrolled[[#This Row],[Date of Birth]]=\"\",\"\",INT((TODAY()-NewlyEnrolled[[#This Row],[Date of Birth]])/365.25))","v":""}]
[{"$nulls":4},{"$f":"IF(NewlyEnrolled[[#This Row],[Date of Birth]]=\"\",\"\",INT((TODAY()-NewlyEnrolled[[#This Row],[Date of Birth]])/365.25))","v":""}]
[{"$nulls":4},{"$f":"IF(NewlyEnrolled[[#This Row],[Date of Birth]]=\"\",\"\",INT((TODAY()-NewlyEnrolled[[#This Row],[Date of Birth]])/365.25))","v":""}]
[{"$nulls":4},{"$f":"IF(NewlyEnrolled[[#This Row],[Date of Birth]]=\"\",\"\",INT((TODAY()-NewlyEnrolled[[#This Row],[Date of Birth]])/365.25))","v":""}]
[{"$nulls":4},{"$f":"IF(NewlyEnrolled[[#This Row],[Date of Birth]]=\"\",\"\",INT((TODAY()-NewlyEnrolled[[#This Row],[Date of Birth]])/365.25))","v":""}]
[{"$nulls":4},{"$f":"IF(NewlyEnrolled[[#This Row],[Date of Birth]]=\"\",\"\",INT((TODAY()-NewlyEnrolled[[#This Row],[Date of Birth]])/365.25))","v":""}]
[{"$nulls":4},{"$f":"IF(NewlyEnrolled[[#This Row],[Date of Birth]]=\"\",\"\",INT((TODAY()-NewlyEnrolled[[#This Row],[Date of Birth]])/365.25))","v":""}]
[{"$nulls":4},{"$f":"IF(NewlyEnrolled[[#This Row],[Date of Birth]]=\"\",\"\",INT((TODAY()-NewlyEnrolled[[#This Row],[Date of Birth]])/365.25))","v":""}]
[{"$nulls":4},{"$f":"IF(NewlyEnrolled[[#This Row],[Date of Birth]]=\"\",\"\",INT((TODAY()-NewlyEnrolled[[#This Row],[Date of Birth]])/365.25))","v":""}]
[{"$nulls":4},{"$f":"IF(NewlyEnrolled[[#This Row],[Date of Birth]]=\"\",\"\",INT((TODAY()-NewlyEnrolled[[#This Row],[Date of Birth]])/365.25))","v":""}]
[{"$nulls":4},{"$f":"IF(NewlyEnrolled[[#This Row],[Date of Birth]]=\"\",\"\",INT((TODAY()-NewlyEnrolled[[#This Row],[Date of Birth]])/365.25))","v":""}]
[{"$nulls":4},{"$f":"IF(NewlyEnrolled[[#This Row],[Date of Birth]]=\"\",\"\",INT((TODAY()-NewlyEnrolled[[#This Row],[Date of Birth]])/365.25))","v":""}]
[{"$nulls":4},{"$f":"IF(NewlyEnrolled[[#This Row],[Date of Birth]]=\"\",\"\",INT((TODAY()-NewlyEnrolled[[#This Row],[Date of Birth]])/365.25))","v":""}]
[{"$nulls":4},{"$f":"IF(NewlyEnrolled[[#This Row],[Date of Birth]]=\"\",\"\",INT((TODAY()-NewlyEnrolled[[#This Row],[Date of Birth]])/365.25))","v":""}]
[{"$nulls":4},{"$f":"IF(NewlyEnrolled[[#This Row],[Date of Birth]]=\"\",\"\",INT((TODAY()-NewlyEnrolled[[#This Row],[Date of Birth]])/365.25))","v":""}]
[{"$nulls":4},{"$f":"IF(NewlyEnrolled[[#This Row],[Date of Birth]]=\"\",\"\",INT((TODAY()-NewlyEnrolled[[#This Row],[Date of Birth]])/365.25))","v":""}]
[{"$nulls":4},{"$f":"IF(NewlyEnrolled[[#This Row],[Date of Birth]]=\"\",\"\",INT((TODAY()-NewlyEnrolled[[#This Row],[Date of Birth]])/365.25))","v":""}]
[{"$nulls":4},{"$f":"IF(NewlyEnrolled[[#This Row],[Date of Birth]]=\"\",\"\",INT((TODAY()-NewlyEnrolled[[#This Row],[Date of Birth]])/365.25))","v":""}]
[{"$nulls":4},{"$f":"IF(NewlyEnrolled[[#This Row],[Date of Birth]]=\"\",\"\",INT((TODAY()-NewlyEnrolled[[#This Row],[Date of Birth]])/365.25))","v":""}]
[{"$nulls":4},{"$f":"IF(NewlyEnrolled[[#This Row],[Date of Birth]]=\"\",\"\",INT((TODAY()-NewlyEnrolled[[#This Row],[Date of Birth]])/365.25))","v":""}]
[{"$nulls":4},{"$f":"IF(NewlyEnrolled[[#This Row],[Date of Birth]]=\"\",\"\",INT((TODAY()-NewlyEnrolled[[#This Row],[Date of Birth]])/365.25))","v":""}]
[{"$nulls":4},{"$f":"IF(NewlyEnrolled[[#This Row],[Date of Birth]]=\"\",\"\",INT((TODAY()-NewlyEnrolled[[#This Row],[Date of Birth]])/365.25))","v":""}]
[{"$nulls":4},{"$f":"IF(NewlyEnrolled[[#This Row],[Date of Birth]]=\"\",\"\",INT((TODAY()-NewlyEnrolled[[#This Row],[Date of Birth]])/365.25))","v":""}]
[{"$nulls":4},{"$f":"IF(NewlyEnrolled[[#This Row],[Date of Birth]]=\"\",\"\",INT((TODAY()-NewlyEnrolled[[#This Row],[Date of Birth]])/365.25))","v":""}]
[{"$nulls":4},{"$f":"IF(NewlyEnrolled[[#This Row],[Date of Birth]]=\"\",\"\",INT((TODAY()-NewlyEnrolled[[#This Row],[Date of Birth]])/365.25))","v":""}]
[{"$nulls":4},{"$f":"IF(NewlyEnrolled[[#This Row],[Date of Birth]]=\"\",\"\",INT((TODAY()-NewlyEnrolled[[#This Row],[Date of Birth]])/365.25))","v":""}]
[{"$nulls":4},{"$f":"IF(NewlyEnrolled[[#This Row],[Date of Birth]]=\"\",\"\",INT((TODAY()-NewlyEnrolled[[#This Row],[Date of Birth]])/365.25))","v":""}]
[{"$nulls":4},{"$f":"IF(NewlyEnrolled[[#This Row],[Date of Birth]]=\"\",\"\",INT((TODAY()-NewlyEnrolled[[#This Row],[Date of Birth]])/365.25))","v":""}]
[{"$nulls":4},{"$f":"IF(NewlyEnrolled[[#This Row],[Date of Birth]]=\"\",\"\",INT((TODAY()-NewlyEnrolled[[#This Row],[Date of Birth]])/365.25))","v":""}]
[{"$nulls":4},{"$f":"IF(NewlyEnrolled[[#This Row],[Date of Birth]]=\"\",\"\",INT((TODAY()-NewlyEnrolled[[#This Row],[Date of Birth]])/365.25))","v":""}]
[{"$nulls":4},{"$f":"IF(NewlyEnrolled[[#This Row],[Date of Birth]]=\"\",\"\",INT((TODAY()-NewlyEnrolled[[#This Row],[Date of Birth]])/365.25))","v":""}]
[{"$nulls":4},{"$f":"IF(NewlyEnrolled[[#This Row],[Date of Birth]]=\"\",\"\",INT((TODAY()-NewlyEnrolled[[#This Row],[Date of Birth]])/365.25))","v":""}]
[{"$nulls":4},{"$f":"IF(NewlyEnrolled[[#This Row],[Date of Birth]]=\"\",\"\",INT((TODAY()-NewlyEnrolled[[#This Row],[Date of Birth]])/365.25))","v":""}]
[{"$nulls":4},{"$f":"IF(NewlyEnrolled[[#This Row],[Date of Birth]]=\"\",\"\",INT((TODAY()-NewlyEnrolled[[#This Row],[Date of Birth]])/365.25))","v":""}]
[{"$nulls":4},{"$f":"IF(NewlyEnrolled[[#This Row],[Date of Birth]]=\"\",\"\",INT((TODAY()-NewlyEnrolled[[#This Row],[Date of Birth]])/365.25))","v":""}]
[{"$nulls":4},{"$f":"IF(NewlyEnrolled[[#This Row],[Date of Birth]]=\"\",\"\",INT((TODAY()-NewlyEnrolled[[#This Row],[Date of Birth]])/365.25))","v":""}]
[{"$nulls":4},{"$f":"IF(NewlyEnrolled[[#This Row],[Date of Birth]]=\"\",\"\",INT((TODAY()-NewlyEnrolled[[#This Row],[Date of Birth]])/365.25))","v":""}]
[{"$nulls":4},{"$f":"IF(NewlyEnrolled[[#This Row],[Date of Birth]]=\"\",\"\",INT((TODAY()-NewlyEnrolled[[#This Row],[Date of Birth]])/365.25))","v":""}]
[{"$nulls":4},{"$f":"IF(NewlyEnrolled[[#This Row],[Date of Birth]]=\"\",\"\",INT((TODAY()-NewlyEnrolled[[#This Row],[Date of Birth]])/365.25))","v":""}]
[{"$nulls":4},{"$f":"IF(NewlyEnrolled[[#This Row],[Date of Birth]]=\"\",\"\",INT((TODAY()-NewlyEnrolled[[#This Row],[Date of Birth]])/365.25))","v":""}]
[{"$nulls":4},{"$f":"IF(NewlyEnrolled[[#This Row],[Date of Birth]]=\"\",\"\",INT((TODAY()-NewlyEnrolled[[#This Row],[Date of Birth]])/365.25))","v":""}]
[{"$nulls":4},{"$f":"IF(NewlyEnrolled[[#This Row],[Date of Birth]]=\"\",\"\",INT((TODAY()-NewlyEnrolled[[#This Row],[Date of Birth]])/365.25))","v":""}]
[{"$nulls":4},{"$f":"IF(NewlyEnrolled[[#This Row],[Date of Birth]]=\"\",\"\",INT((TODAY()-NewlyEnrolled[[#This Row],[Date of Birth]])/365.25))","v":""}]
[{"$nulls":4},{"$f":"IF(NewlyEnrolled[[#This Row],[Date of Birth]]=\"\",\"\",INT((TODAY()-NewlyEnrolled[[#This Row],[Date of Birth]])/365.25))","v":""}]
[{"$nulls":4},{"$f":"IF(NewlyEnrolled[[#This Row],[Date of Birth]]=\"\",\"\",INT((TODAY()-NewlyEnrolled[[#This Row],[Date of Birth]])/365.25))","v":""}]
[{"$nulls":4},{"$f":"IF(NewlyEnrolled[[#This Row],[Date of Birth]]=\"\",\"\",INT((TODAY()-NewlyEnrolled[[#This Row],[Date of Birth]])/365.25))","v":""}]
[{"$nulls":4},{"$f":"IF(NewlyEnrolled[[#This Row],[Date of Birth]]=\"\",\"\",INT((TODAY()-NewlyEnrolled[[#This Row],[Date of Birth]])/365.25))","v":""}]
[{"$nulls":4},{"$f":"IF(NewlyEnrolled[[#This Row],[Date of Birth]]=\"\",\"\",INT((TODAY()-NewlyEnrolled[[#This Row],[Date of Birth]])/365.25))","v":""}]
[{"$nulls":4},{"$f":"IF(NewlyEnrolled[[#This Row],[Date of Birth]]=\"\",\"\",INT((TODAY()-NewlyEnrolled[[#This Row],[Date of Birth]])/365.25))","v":""}]
[{"$nulls":4},{"$f":"IF(NewlyEnrolled[[#This Row],[Date of Birth]]=\"\",\"\",INT((TODAY()-NewlyEnrolled[[#This Row],[Date of Birth]])/365.25))","v":""}]
[{"$nulls":4},{"$f":"IF(NewlyEnrolled[[#This Row],[Date of Birth]]=\"\",\"\",INT((TODAY()-NewlyEnrolled[[#This Row],[Date of Birth]])/365.25))","v":""}]
[{"$nulls":4},{"$f":"IF(NewlyEnrolled[[#This Row],[Date of Birth]]=\"\",\"\",INT((TODAY()-NewlyEnrolled[[#This Row],[Date of Birth]])/365.25))","v":""}]
[{"$nulls":4},{"$f":"IF(NewlyEnrolled[[#This Row],[Date of Birth]]=\"\",\"\",INT((TODAY()-NewlyEnrolled[[#This Row],[Date of Birth]])/365.25))","v":""}]
[{"$nulls":4},{"$f":"IF(NewlyEnrolled[[#This Row],[Date of Birth]]=\"\",\"\",INT((TODAY()-NewlyEnrolled[[#This Row],[Date of Birth]])/365.25))","v":""}]
[{"$nulls":4},{"$f":"IF(NewlyEnrolled[[#This Row],[Date of Birth]]=\"\",\"\",INT((TODAY()-NewlyEnrolled[[#This Row],[Date of Birth]])/365.25))","v":""}]
[{"$nulls":4},{"$f":"IF(NewlyEnrolled[[#This Row],[Date of Birth]]=\"\",\"\",INT((TODAY()-NewlyEnrolled[[#This Row],[Date of Birth]])/365.25))","v":""}]
[{"$nulls":4},{"$f":"IF(NewlyEnrolled[[#This Row],[Date of Birth]]=\"\",\"\",INT((TODAY()-NewlyEnrolled[[#This Row],[Date of Birth]])/365.25))","v":""}]
[{"$nulls":4},{"$f":"IF(NewlyEnrolled[[#This Row],[Date of Birth]]=\"\",\"\",INT((TODAY()-NewlyEnrolled[[#This Row],[Date of Birth]])/365.25))","v":""}]
[{"$nulls":4},{"$f":"IF(NewlyEnrolled[[#This Row],[Date of Birth]]=\"\",\"\",INT((TODAY()-NewlyEnrolled[[#This Row],[Date of Birth]])/365.25))","v":""}]
[{"$nulls":4},{"$f":"IF(NewlyEnrolled[[#This Row],[Date of Birth]]=\"\",\"\",INT((TODAY()-NewlyEnrolled[[#This Row],[Date of Birth]])/365.25))","v":""}]
[{"$nulls":4},{"$f":"IF(NewlyEnrolled[[#This Row],[Date of Birth]]=\"\",\"\",INT((TODAY()-NewlyEnrolled[[#This Row],[Date of Birth]])/365.25))","v":""}]
[{"$nulls":4},{"$f":"IF(NewlyEnrolled[[#This Row],[Date of Birth]]=\"\",\"\",INT((TODAY()-NewlyEnrolled[[#This Row],[Date of Birth]])/365.25))","v":""}]
[{"$nulls":4},{"$f":"IF(NewlyEnrolled[[#This Row],[Date of Birth]]=\"\",\"\",INT((TODAY()-NewlyEnrolled[[#This Row],[Date of Birth]])/365.25))","v":""}]
[{"$nulls":4},{"$f":"IF(NewlyEnrolled[[#This Row],[Date of Birth]]=\"\",\"\",INT((TODAY()-NewlyEnrolled[[#This Row],[Date of Birth]])/365.25))","v":""}]
[{"$nulls":4},{"$f":"IF(NewlyEnrolled[[#This Row],[Date of Birth]]=\"\",\"\",INT((TODAY()-NewlyEnrolled[[#This Row],[Date of Birth]])/365.25))","v":""}]
[{"$nulls":4},{"$f":"IF(NewlyEnrolled[[#This Row],[Date of Birth]]=\"\",\"\",INT((TODAY()-NewlyEnrolled[[#This Row],[Date of Birth]])/365.25))","v":""}]
[{"$nulls":4},{"$f":"IF(NewlyEnrolled[[#This Row],[Date of Birth]]=\"\",\"\",INT((TODAY()-NewlyEnrolled[[#This Row],[Date of Birth]])/365.25))","v":""}]
[{"$nulls":4},{"$f":"IF(NewlyEnrolled[[#This Row],[Date of Birth]]=\"\",\"\",INT((TODAY()-NewlyEnrolled[[#This Row],[Date of Birth]])/365.25))","v":""}]
[{"$nulls":4},{"$f":"IF(NewlyEnrolled[[#This Row],[Date of Birth]]=\"\",\"\",INT((TODAY()-NewlyEnrolled[[#This Row],[Date of Birth]])/365.25))","v":""}]
[{"$nulls":4},{"$f":"IF(NewlyEnrolled[[#This Row],[Date of Birth]]=\"\",\"\",INT((TODAY()-NewlyEnrolled[[#This Row],[Date of Birth]])/365.25))","v":""}]
[{"$nulls":4},{"$f":"IF(NewlyEnrolled[[#This Row],[Date of Birth]]=\"\",\"\",INT((TODAY()-NewlyEnrolled[[#This Row],[Date of Birth]])/365.25))","v":""}]
[{"$nulls":4},{"$f":"IF(NewlyEnrolled[[#This Row],[Date of Birth]]=\"\",\"\",INT((TODAY()-NewlyEnrolled[[#This Row],[Date of Birth]])/365.25))","v":""}]
[{"$nulls":4},{"$f":"IF(NewlyEnrolled[[#This Row],[Date of Birth]]=\"\",\"\",INT((TODAY()-NewlyEnrolled[[#This Row],[Date of Birth]])/365.25))","v":""}]
[{"$nulls":4},{"$f":"IF(NewlyEnrolled[[#This Row],[Date of Birth]]=\"\",\"\",INT((TODAY()-NewlyEnrolled[[#This Row],[Date of Birth]])/365.25))","v":""}]
[{"$nulls":4},{"$f":"IF(NewlyEnrolled[[#This Row],[Date of Birth]]=\"\",\"\",INT((TODAY()-NewlyEnrolled[[#This Row],[Date of Birth]])/365.25))","v":""}]
[{"$nulls":4},{"$f":"IF(NewlyEnrolled[[#This Row],[Date of Birth]]=\"\",\"\",INT((TODAY()-NewlyEnrolled[[#This Row],[Date of Birth]])/365.25))","v":""}]
[{"$nulls":4},{"$f":"IF(NewlyEnrolled[[#This Row],[Date of Birth]]=\"\",\"\",INT((TODAY()-NewlyEnrolled[[#This Row],[Date of Birth]])/365.25))","v":""}]
[{"$nulls":4},{"$f":"IF(NewlyEnrolled[[#This Row],[Date of Birth]]=\"\",\"\",INT((TODAY()-NewlyEnrolled[[#This Row],[Date of Birth]])/365.25))","v":""}]
[{"$nulls":4},{"$f":"IF(NewlyEnrolled[[#This Row],[Date of Birth]]=\"\",\"\",INT((TODAY()-NewlyEnrolled[[#This Row],[Date of Birth]])/365.25))","v":""}]
[{"$nulls":4},{"$f":"IF(NewlyEnrolled[[#This Row],[Date of Birth]]=\"\",\"\",INT((TODAY()-NewlyEnrolled[[#This Row],[Date of Birth]])/365.25))","v":""}]
[{"$nulls":4},{"$f":"IF(NewlyEnrolled[[#This Row],[Date of Birth]]=\"\",\"\",INT((TODAY()-NewlyEnrolled[[#This Row],[Date of Birth]])/365.25))","v":""}]
[{"$nulls":4},{"$f":"IF(NewlyEnrolled[[#This Row],[Date of Birth]]=\"\",\"\",INT((TODAY()-NewlyEnrolled[[#This Row],[Date of Birth]])/365.25))","v":""}]
[{"$nulls":4},{"$f":"IF(NewlyEnrolled[[#This Row],[Date of Birth]]=\"\",\"\",INT((TODAY()-NewlyEnrolled[[#This Row],[Date of Birth]])/365.25))","v":""}]
[{"$nulls":4},{"$f":"IF(NewlyEnrolled[[#This Row],[Date of Birth]]=\"\",\"\",INT((TODAY()-NewlyEnrolled[[#This Row],[Date of Birth]])/365.25))","v":""}]
[{"$nulls":4},{"$f":"IF(NewlyEnrolled[[#This Row],[Date of Birth]]=\"\",\"\",INT((TODAY()-NewlyEnrolled[[#This Row],[Date of Birth]])/365.25))","v":""}]
[{"$nulls":4},{"$f":"IF(NewlyEnrolled[[#This Row],[Date of Birth]]=\"\",\"\",INT((TODAY()-NewlyEnrolled[[#This Row],[Date of Birth]])/365.25))","v":""}]
[{"$nulls":4},{"$f":"IF(NewlyEnrolled[[#This Row],[Date of Birth]]=\"\",\"\",INT((TODAY()-NewlyEnrolled[[#This Row],[Date of Birth]])/365.25))","v":""}]
[{"$nulls":4},{"$f":"IF(NewlyEnrolled[[#This Row],[Date of Birth]]=\"\",\"\",INT((TODAY()-NewlyEnrolled[[#This Row],[Date of Birth]])/365.25))","v":""}]
[{"$nulls":4},{"$f":"IF(NewlyEnrolled[[#This Row],[Date of Birth]]=\"\",\"\",INT((TODAY()-NewlyEnrolled[[#This Row],[Date of Birth]])/365.25))","v":""}]
[{"$nulls":4},{"$f":"IF(NewlyEnrolled[[#This Row],[Date of Birth]]=\"\",\"\",INT((TODAY()-NewlyEnrolled[[#This Row],[Date of Birth]])/365.25))","v":""}]
[{"$nulls":4},{"$f":"IF(NewlyEnrolled[[#This Row],[Date of Birth]]=\"\",\"\",INT((TODAY()-NewlyEnrolled[[#This Row],[Date of Birth]])/365.25))","v":""}]
[{"$nulls":4},{"$f":"IF(NewlyEnrolled[[#This Row],[Date of Birth]]=\"\",\"\",INT((TODAY()-NewlyEnrolled[[#This Row],[Date of Birth]])/365.25))","v":""}]
[{"$nulls":4},{"$f":"IF(NewlyEnrolled[[#This Row],[Date of Birth]]=\"\",\"\",INT((TODAY()-NewlyEnrolled[[#This Row],[Date of Birth]])/365.25))","v":""}]
[{"$nulls":4},{"$f":"IF(NewlyEnrolled[[#This Row],[Date of Birth]]=\"\",\"\",INT((TODAY()-NewlyEnrolled[[#This Row],[Date of Birth]])/365.25))","v":""}]
[{"$nulls":4},{"$f":"IF(NewlyEnrolled[[#This Row],[Date of Birth]]=\"\",\"\",INT((TODAY()-NewlyEnrolled[[#This Row],[Date of Birth]])/365.25))","v":""}]
[{"$nulls":4},{"$f":"IF(NewlyEnrolled[[#This Row],[Date of Birth]]=\"\",\"\",INT((TODAY()-NewlyEnrolled[[#This Row],[Date of Birth]])/365.25))","v":""}]
[{"$nulls":4},{"$f":"IF(NewlyEnrolled[[#This Row],[Date of Birth]]=\"\",\"\",INT((TODAY()-NewlyEnrolled[[#This Row],[Date of Birth]])/365.25))","v":""}]
[{"$nulls":4},{"$f":"IF(NewlyEnrolled[[#This Row],[Date of Birth]]=\"\",\"\",INT((TODAY()-NewlyEnrolled[[#This Row],[Date of Birth]])/365.25))","v":""}]
[{"$nulls":4},{"$f":"IF(NewlyEnrolled[[#This Row],[Date of Birth]]=\"\",\"\",INT((TODAY()-NewlyEnrolled[[#This Row],[Date of Birth]])/365.25))","v":""}]
[{"$nulls":4},{"$f":"IF(NewlyEnrolled[[#This Row],[Date of Birth]]=\"\",\"\",INT((TODAY()-NewlyEnrolled[[#This Row],[Date of Birth]])/365.25))","v":""}]
[{"$nulls":4},{"$f":"IF(NewlyEnrolled[[#This Row],[Date of Birth]]=\"\",\"\",INT((TODAY()-NewlyEnrolled[[#This Row],[Date of Birth]])/365.25))","v":""}]
[{"$nulls":4},{"$f":"IF(NewlyEnrolled[[#This Row],[Date of Birth]]=\"\",\"\",INT((TODAY()-NewlyEnrolled[[#This Row],[Date of Birth]])/365.25))","v":""}]
[{"$nulls":4},{"$f":"IF(NewlyEnrolled[[#This Row],[Date of Birth]]=\"\",\"\",INT((TODAY()-NewlyEnrolled[[#This Row],[Date of Birth]])/365.25))","v":""}]
[{"$nulls":4},{"$f":"IF(NewlyEnrolled[[#This Row],[Date of Birth]]=\"\",\"\",INT((TODAY()-NewlyEnrolled[[#This Row],[Date of Birth]])/365.25))","v":""}]
[{"$nulls":4},{"$f":"IF(NewlyEnrolled[[#This Row],[Date of Birth]]=\"\",\"\",INT((TODAY()-NewlyEnrolled[[#This Row],[Date of Birth]])/365.25))","v":""}]
[{"$nulls":4},{"$f":"IF(NewlyEnrolled[[#This Row],[Date of Birth]]=\"\",\"\",INT((TODAY()-NewlyEnrolled[[#This Row],[Date of Birth]])/365.25))","v":""}]
[{"$nulls":4},{"$f":"IF(NewlyEnrolled[[#This Row],[Date of Birth]]=\"\",\"\",INT((TODAY()-NewlyEnrolled[[#This Row],[Date of Birth]])/365.25))","v":""}]
[{"$nulls":4},{"$f":"IF(NewlyEnrolled[[#This Row],[Date of Birth]]=\"\",\"\",INT((TODAY()-NewlyEnrolled[[#This Row],[Date of Birth]])/365.25))","v":""}]
[{"$nulls":4},{"$f":"IF(NewlyEnrolled[[#This Row],[Date of Birth]]=\"\",\"\",INT((TODAY()-NewlyEnrolled[[#This Row],[Date of Birth]])/365.25))","v":""}]
[{"$nulls":4},{"$f":"IF(NewlyEnrolled[[#This Row],[Date of Birth]]=\"\",\"\",INT((TODAY()-NewlyEnrolled[[#This Row],[Date of Birth]])/365.25))","v":""}]
[{"$nulls":4},{"$f":"IF(NewlyEnrolled[[#This Row],[Date of Birth]]=\"\",\"\",INT((TODAY()-NewlyEnrolled[[#This Row],[Date of Birth]])/365.25))","v":""}]
[{"$nulls":4},{"$f":"IF(NewlyEnrolled[[#This Row],[Date of Birth]]=\"\",\"\",INT((TODAY()-NewlyEnrolled[[#This Row],[Date of Birth]])/365.25))","v":""}]
[{"$nulls":4},{"$f":"IF(NewlyEnrolled[[#This Row],[Date of Birth]]=\"\",\"\",INT((TODAY()-NewlyEnrolled[[#This Row],[Date of Birth]])/365.25))","v":""}]
[{"$nulls":4},{"$f":"IF(NewlyEnrolled[[#This Row],[Date of Birth]]=\"\",\"\",INT((TODAY()-NewlyEnrolled[[#This Row],[Date of Birth]])/365.25))","v":""}]
[{"$nulls":4},{"$f":"IF(NewlyEnrolled[[#This Row],[Date of Birth]]=\"\",\"\",INT((TODAY()-NewlyEnrolled[[#This Row],[Date of Birth]])/365.25))","v":""}]
[{"$nulls":4},{"$f":"IF(NewlyEnrolled[[#This Row],[Date of Birth]]=\"\",\"\",INT((TODAY()-NewlyEnrolled[[#This Row],[Date of Birth]])/365.25))","v":""}]
[{"$nulls":4},{"$f":"IF(NewlyEnrolled[[#This Row],[Date of Birth]]=\"\",\"\",INT((TODAY()-NewlyEnrolled[[#This Row],[Date of Birth]])/365.25))","v":""}]
[{"$nulls":4},{"$f":"IF(NewlyEnrolled[[#This Row],[Date of Birth]]=\"\",\"\",INT((TODAY()-NewlyEnrolled[[#This Row],[Date of Birth]])/365.25))","v":""}]
[{"$nulls":4},{"$f":"IF(NewlyEnrolled[[#This Row],[Date of Birth]]=\"\",\"\",INT((TODAY()-NewlyEnrolled[[#This Row],[Date of Birth]])/365.25))","v":""}]
[{"$nulls":4},{"$f":"IF(NewlyEnrolled[[#This Row],[Date of Birth]]=\"\",\"\",INT((TODAY()-NewlyEnrolled[[#This Row],[Date of Birth]])/365.25))","v":""}]
[{"$nulls":4},{"$f":"IF(NewlyEnrolled[[#This Row],[Date of Birth]]=\"\",\"\",INT((TODAY()-NewlyEnrolled[[#This Row],[Date of Birth]])/365.25))","v":""}]
[{"$nulls":4},{"$f":"IF(NewlyEnrolled[[#This Row],[Date of Birth]]=\"\",\"\",INT((TODAY()-NewlyEnrolled[[#This Row],[Date of Birth]])/365.25))","v":""}]
[{"$nulls":4},{"$f":"IF(NewlyEnrolled[[#This Row],[Date of Birth]]=\"\",\"\",INT((TODAY()-NewlyEnrolled[[#This Row],[Date of Birth]])/365.25))","v":""}]
[{"$nulls":4},{"$f":"IF(NewlyEnrolled[[#This Row],[Date of Birth]]=\"\",\"\",INT((TODAY()-NewlyEnrolled[[#This Row],[Date of Birth]])/365.25))","v":""}]
[{"$nulls":4},{"$f":"IF(NewlyEnrolled[[#This Row],[Date of Birth]]=\"\",\"\",INT((TODAY()-NewlyEnrolled[[#This Row],[Date of Birth]])/365.25))","v":""}]
[{"$nulls":4},{"$f":"IF(NewlyEnrolled[[#This Row],[Date of Birth]]=\"\",\"\",INT((TODAY()-NewlyEnrolled[[#This Row],[Date of Birth]])/365.25))","v":""}]
[{"$nulls":4},{"$f":"IF(NewlyEnrolled[[#This Row],[Date of Birth]]=\"\",\"\",INT((TODAY()-NewlyEnrolled[[#This Row],[Date of Birth]])/365.25))","v":""}]
[{"$nulls":4},{"$f":"IF(NewlyEnrolled[[#This Row],[Date of Birth]]=\"\",\"\",INT((TODAY()-NewlyEnrolled[[#This Row],[Date of Birth]])/365.25))","v":""}]
[{"$nulls":4},{"$f":"IF(NewlyEnrolled[[#This Row],[Date of Birth]]=\"\",\"\",INT((TODAY()-NewlyEnrolled[[#This Row],[Date of Birth]])/365.25))","v":""}]
[{"$nulls":4},{"$f":"IF(NewlyEnrolled[[#This Row],[Date of Birth]]=\"\",\"\",INT((TODAY()-NewlyEnrolled[[#This Row],[Date of Birth]])/365.25))","v":""}]
[{"$nulls":4},{"$f":"IF(NewlyEnrolled[[#This Row],[Date of Birth]]=\"\",\"\",INT((TODAY()-NewlyEnrolled[[#This Row],[Date of Birth]])/365.25))","v":""}]
[{"$nulls":4},{"$f":"IF(NewlyEnrolled[[#This Row],[Date of Birth]]=\"\",\"\",INT((TODAY()-NewlyEnrolled[[#This Row],[Date of Birth]])/365.25))","v":""}]
[{"$nulls":4},{"$f":"IF(NewlyEnrolled[[#This Row],[Date of Birth]]=\"\",\"\",INT((TODAY()-NewlyEnrolled[[#This Row],[Date of Birth]])/365.25))","v":""}]
[{"$nulls":4},{"$f":"IF(NewlyEnrolled[[#This Row],[Date of Birth]]=\"\",\"\",INT((TODAY()-NewlyEnrolled[[#This Row],[Date of Birth]])/365.25))","v":""}]
[{"$nulls":4},{"$f":"IF(NewlyEnrolled[[#This Row],[Date of Birth]]=\"\",\"\",INT((TODAY()-NewlyEnrolled[[#This Row],[Date of Birth]])/365.25))","v":""}]
[{"$nulls":4},{"$f":"IF(NewlyEnrolled[[#This Row],[Date of Birth]]=\"\",\"\",INT((TODAY()-NewlyEnrolled[[#This Row],[Date of Birth]])/365.25))","v":""}]
[{"$nulls":4},{"$f":"IF(NewlyEnrolled[[#This Row],[Date of Birth]]=\"\",\"\",INT((TODAY()-NewlyEnrolled[[#This Row],[Date of Birth]])/365.25))","v":""}]
[{"$nulls":4},{"$f":"IF(NewlyEnrolled[[#This Row],[Date of Birth]]=\"\",\"\",INT((TODAY()-NewlyEnrolled[[#This Row],[Date of Birth]])/365.25))","v":""}]
[{"$nulls":4},{"$f":"IF(NewlyEnrolled[[#This Row],[Date of Birth]]=\"\",\"\",INT((TODAY()-NewlyEnrolled[[#This Row],[Date of Birth]])/365.25))","v":""}]
[{"$nulls":4},{"$f":"IF(NewlyEnrolled[[#This Row],[Date of Birth]]=\"\",\"\",INT((TODAY()-NewlyEnrolled[[#This Row],[Date of Birth]])/365.25))","v":""}]
[{"$nulls":4},{"$f":"IF(NewlyEnrolled[[#This Row],[Date of Birth]]=\"\",\"\",INT((TODAY()-NewlyEnrolled[[#This Row],[Date of Birth]])/365.25))","v":""}]
[{"$nulls":4},{"$f":"IF(NewlyEnrolled[[#This Row],[Date of Birth]]=\"\",\"\",INT((TODAY()-NewlyEnrolled[[#This Row],[Date of Birth]])/365.25))","v":""}]
[{"$nulls":4},{"$f":"IF(NewlyEnrolled[[#This Row],[Date of Birth]]=\"\",\"\",INT((TODAY()-NewlyEnrolled[[#This Row],[Date of Birth]])/365.25))","v":""}]
[{"$nulls":4},{"$f":"IF(NewlyEnrolled[[#This Row],[Date of Birth]]=\"\",\"\",INT((TODAY()-NewlyEnrolled[[#This Row],[Date of Birth]])/365.25))","v":""}]
[{"$nulls":4},{"$f":"IF(NewlyEnrolled[[#This Row],[Date of Birth]]=\"\",\"\",INT((TODAY()-NewlyEnrolled[[#This Row],[Date of Birth]])/365.25))","v":""}]
[{"$nulls":4},{"$f":"IF(NewlyEnrolled[[#This Row],[Date of Birth]]=\"\",\"\",INT((TODAY()-NewlyEnrolled[[#This Row],[Date of Birth]])/365.25))","v":""}]
[{"$nulls":4},{"$f":"IF(NewlyEnrolled[[#This Row],[Date of Birth]]=\"\",\"\",INT((TODAY()-NewlyEnrolled[[#This Row],[Date of Birth]])/365.25))","v":""}]
[{"$nulls":4},{"$f":"IF(NewlyEnrolled[[#This Row],[Date of Birth]]=\"\",\"\",INT((TODAY()-NewlyEnrolled[[#This Row],[Date of Birth]])/365.25))","v":""}]
[{"$nulls":4},{"$f":"IF(NewlyEnrolled[[#This Row],[Date of Birth]]=\"\",\"\",INT((TODAY()-NewlyEnrolled[[#This Row],[Date of Birth]])/365.25))","v":""}]
[{"$nulls":4},{"$f":"IF(NewlyEnrolled[[#This Row],[Date of Birth]]=\"\",\"\",INT((TODAY()-NewlyEnrolled[[#This Row],[Date of Birth]])/365.25))","v":""}]
[{"$nulls":4},{"$f":"IF(NewlyEnrolled[[#This Row],[Date of Birth]]=\"\",\"\",INT((TODAY()-NewlyEnrolled[[#This Row],[Date of Birth]])/365.25))","v":""}]
[{"$nulls":4},{"$f":"IF(NewlyEnrolled[[#This Row],[Date of Birth]]=\"\",\"\",INT((TODAY()-NewlyEnrolled[[#This Row],[Date of Birth]])/365.25))","v":""}]
[{"$nulls":4},{"$f":"IF(NewlyEnrolled[[#This Row],[Date of Birth]]=\"\",\"\",INT((TODAY()-NewlyEnrolled[[#This Row],[Date of Birth]])/365.25))","v":""}]
[{"$nulls":4},{"$f":"IF(NewlyEnrolled[[#This Row],[Date of Birth]]=\"\",\"\",INT((TODAY()-NewlyEnrolled[[#This Row],[Date of Birth]])/365.25))","v":""}]
[{"$nulls":4},{"$f":"IF(NewlyEnrolled[[#This Row],[Date of Birth]]=\"\",\"\",INT((TODAY()-NewlyEnrolled[[#This Row],[Date of Birth]])/365.25))","v":""}]
[{"$nulls":4},{"$f":"IF(NewlyEnrolled[[#This Row],[Date of Birth]]=\"\",\"\",INT((TODAY()-NewlyEnrolled[[#This Row],[Date of Birth]])/365.25))","v":""}]
[{"$nulls":4},{"$f":"IF(NewlyEnrolled[[#This Row],[Date of Birth]]=\"\",\"\",INT((TODAY()-NewlyEnrolled[[#This Row],[Date of Birth]])/365.25))","v":""}]
[{"$nulls":4},{"$f":"IF(NewlyEnrolled[[#This Row],[Date of Birth]]=\"\",\"\",INT((TODAY()-NewlyEnrolled[[#This Row],[Date of Birth]])/365.25))","v":""}]
[{"$nulls":4},{"$f":"IF(NewlyEnrolled[[#This Row],[Date of Birth]]=\"\",\"\",INT((TODAY()-NewlyEnrolled[[#This Row],[Date of Birth]])/365.25))","v":""}]
[{"$nulls":4},{"$f":"IF(NewlyEnrolled[[#This Row],[Date of Birth]]=\"\",\"\",INT((TODAY()-NewlyEnrolled[[#This Row],[Date of Birth]])/365.25))","v":""}]
[{"$nulls":4},{"$f":"IF(NewlyEnrolled[[#This Row],[Date of Birth]]=\"\",\"\",INT((TODAY()-NewlyEnrolled[[#This Row],[Date of Birth]])/365.25))","v":""}]
[{"$nulls":4},{"$f":"IF(NewlyEnrolled[[#This Row],[Date of Birth]]=\"\",\"\",INT((TODAY()-NewlyEnrolled[[#This Row],[Date of Birth]])/365.25))","v":""}]
[{"$nulls":4},{"$f":"IF(NewlyEnrolled[[#This Row],[Date of Birth]]=\"\",\"\",INT((TODAY()-NewlyEnrolled[[#This Row],[Date of Birth]])/365.25))","v":""}]
[{"$nulls":4},{"$f":"IF(NewlyEnrolled[[#This Row],[Date of Birth]]=\"\",\"\",INT((TODAY()-NewlyEnrolled[[#This Row],[Date of Birth]])/365.25))","v":""}]
[{"$nulls":4},{"$f":"IF(NewlyEnrolled[[#This Row],[Date of Birth]]=\"\",\"\",INT((TODAY()-NewlyEnrolled[[#This Row],[Date of Birth]])/365.25))","v":""}]
[{"$nulls":4},{"$f":"IF(NewlyEnrolled[[#This Row],[Date of Birth]]=\"\",\"\",INT((TODAY()-NewlyEnrolled[[#This Row],[Date of Birth]])/365.25))","v":""}]
[{"$nulls":4},{"$f":"IF(NewlyEnrolled[[#This Row],[Date of Birth]]=\"\",\"\",INT((TODAY()-NewlyEnrolled[[#This Row],[Date of Birth]])/365.25))","v":""}]
[{"$nulls":4},{"$f":"IF(NewlyEnrolled[[#This Row],[Date of Birth]]=\"\",\"\",INT((TODAY()-NewlyEnrolled[[#This Row],[Date of Birth]])/365.25))","v":""}]
[{"$nulls":4},{"$f":"IF(NewlyEnrolled[[#This Row],[Date of Birth]]=\"\",\"\",INT((TODAY()-NewlyEnrolled[[#This Row],[Date of Birth]])/365.25))","v":""}]
[{"$nulls":4},{"$f":"IF(NewlyEnrolled[[#This Row],[Date of Birth]]=\"\",\"\",INT((TODAY()-NewlyEnrolled[[#This Row],[Date of Birth]])/365.25))","v":""}]
[{"$nulls":4},{"$f":"IF(NewlyEnrolled[[#This Row],[Date of Birth]]=\"\",\"\",INT((TODAY()-NewlyEnrolled[[#This Row],[Date of Birth]])/365.25))","v":""}]
[{"$nulls":4},{"$f":"IF(NewlyEnrolled[[#This Row],[Date of Birth]]=\"\",\"\",INT((TODAY()-NewlyEnrolled[[#This Row],[Date of Birth]])/365.25))","v":""}]
[{"$nulls":4},{"$f":"IF(NewlyEnrolled[[#This Row],[Date of Birth]]=\"\",\"\",INT((TODAY()-NewlyEnrolled[[#This Row],[Date of Birth]])/365.25))","v":""}]
[{"$nulls":4},{"$f":"IF(NewlyEnrolled[[#This Row],[Date of Birth]]=\"\",\"\",INT((TODAY()-NewlyEnrolled[[#This Row],[Date of Birth]])/365.25))","v":""}]
[{"$nulls":4},{"$f":"IF(NewlyEnrolled[[#This Row],[Date of Birth]]=\"\",\"\",INT((TODAY()-NewlyEnrolled[[#This Row],[Date of Birth]])/365.25))","v":""}]
[{"$nulls":4},{"$f":"IF(NewlyEnrolled[[#This Row],[Date of Birth]]=\"\",\"\",INT((TODAY()-NewlyEnrolled[[#This Row],[Date of Birth]])/365.25))","v":""}]
[{"$nulls":4},{"$f":"IF(NewlyEnrolled[[#This Row],[Date of Birth]]=\"\",\"\",INT((TODAY()-NewlyEnrolled[[#This Row],[Date of Birth]])/365.25))","v":""}]
[{"$nulls":4},{"$f":"IF(NewlyEnrolled[[#This Row],[Date of Birth]]=\"\",\"\",INT((TODAY()-NewlyEnrolled[[#This Row],[Date of Birth]])/365.25))","v":""}]
[{"$nulls":4},{"$f":"IF(NewlyEnrolled[[#This Row],[Date of Birth]]=\"\",\"\",INT((TODAY()-NewlyEnrolled[[#This Row],[Date of Birth]])/365.25))","v":""}]
[{"$nulls":4},{"$f":"IF(NewlyEnrolled[[#This Row],[Date of Birth]]=\"\",\"\",INT((TODAY()-NewlyEnrolled[[#This Row],[Date of Birth]])/365.25))","v":""}]
[{"$nulls":4},{"$f":"IF(NewlyEnrolled[[#This Row],[Date of Birth]]=\"\",\"\",INT((TODAY()-NewlyEnrolled[[#This Row],[Date of Birth]])/365.25))","v":""}]
[{"$nulls":4},{"$f":"IF(NewlyEnrolled[[#This Row],[Date of Birth]]=\"\",\"\",INT((TODAY()-NewlyEnrolled[[#This Row],[Date of Birth]])/365.25))","v":""}]
[{"$nulls":4},{"$f":"IF(NewlyEnrolled[[#This Row],[Date of Birth]]=\"\",\"\",INT((TODAY()-NewlyEnrolled[[#This Row],[Date of Birth]])/365.25))","v":""}]
[{"$nulls":4},{"$f":"IF(NewlyEnrolled[[#This Row],[Date of Birth]]=\"\",\"\",INT((TODAY()-NewlyEnrolled[[#This Row],[Date of Birth]])/365.25))","v":""}]
[{"$nulls":4},{"$f":"IF(NewlyEnrolled[[#This Row],[Date of Birth]]=\"\",\"\",INT((TODAY()-NewlyEnrolled[[#This Row],[Date of Birth]])/365.25))","v":""}]
[{"$nulls":4},{"$f":"IF(NewlyEnrolled[[#This Row],[Date of Birth]]=\"\",\"\",INT((TODAY()-NewlyEnrolled[[#This Row],[Date of Birth]])/365.25))","v":""}]
[{"$nulls":4},{"$f":"IF(NewlyEnrolled[[#This Row],[Date of Birth]]=\"\",\"\",INT((TODAY()-NewlyEnrolled[[#This Row],[Date of Birth]])/365.25))","v":""}]
[{"$nulls":4},{"$f":"IF(NewlyEnrolled[[#This Row],[Date of Birth]]=\"\",\"\",INT((TODAY()-NewlyEnrolled[[#This Row],[Date of Birth]])/365.25))","v":""}]
[{"$nulls":4},{"$f":"IF(NewlyEnrolled[[#This Row],[Date of Birth]]=\"\",\"\",INT((TODAY()-NewlyEnrolled[[#This Row],[Date of Birth]])/365.25))","v":""}]
[{"$nulls":4},{"$f":"IF(NewlyEnrolled[[#This Row],[Date of Birth]]=\"\",\"\",INT((TODAY()-NewlyEnrolled[[#This Row],[Date of Birth]])/365.25))","v":""}]
[{"$nulls":4},{"$f":"IF(NewlyEnrolled[[#This Row],[Date of Birth]]=\"\",\"\",INT((TODAY()-NewlyEnrolled[[#This Row],[Date of Birth]])/365.25))","v":""}]
[{"$nulls":4},{"$f":"IF(NewlyEnrolled[[#This Row],[Date of Birth]]=\"\",\"\",INT((TODAY()-NewlyEnrolled[[#This Row],[Date of Birth]])/365.25))","v":""}]
[{"$nulls":4},{"$f":"IF(NewlyEnrolled[[#This Row],[Date of Birth]]=\"\",\"\",INT((TODAY()-NewlyEnrolled[[#This Row],[Date of Birth]])/365.25))","v":""}]
[{"$nulls":4},{"$f":"IF(NewlyEnrolled[[#This Row],[Date of Birth]]=\"\",\"\",INT((TODAY()-NewlyEnrolled[[#This Row],[Date of Birth]])/365.25))","v":""}]
[{"$nulls":4},{"$f":"IF(NewlyEnrolled[[#This Row],[Date of Birth]]=\"\",\"\",INT((TODAY()-NewlyEnrolled[[#This Row],[Date of Birth]])/365.25))","v":""}]
[{"$nulls":4},{"$f":"IF(NewlyEnrolled[[#This Row],[Date of Birth]]=\"\",\"\",INT((TODAY()-NewlyEnrolled[[#This Row],[Date of Birth]])/365.25))","v":""}]
[{"$nulls":4},{"$f":"IF(NewlyEnrolled[[#This Row],[Date of Birth]]=\"\",\"\",INT((TODAY()-NewlyEnrolled[[#This Row],[Date of Birth]])/365.25))","v":""}]
[{"$nulls":4},{"$f":"IF(NewlyEnrolled[[#This Row],[Date of Birth]]=\"\",\"\",INT((TODAY()-NewlyEnrolled[[#This Row],[Date of Birth]])/365.25))","v":""}]
[{"$nulls":4},{"$f":"IF(NewlyEnrolled[[#This Row],[Date of Birth]]=\"\",\"\",INT((TODAY()-NewlyEnrolled[[#This Row],[Date of Birth]])/365.25))","v":""}]
[{"$nulls":4},{"$f":"IF(NewlyEnrolled[[#This Row],[Date of Birth]]=\"\",\"\",INT((TODAY()-NewlyEnrolled[[#This Row],[Date of Birth]])/365.25))","v":""}]
[{"$nulls":4},{"$f":"IF(NewlyEnrolled[[#This Row],[Date of Birth]]=\"\",\"\",INT((TODAY()-NewlyEnrolled[[#This Row],[Date of Birth]])/365.25))","v":""}]
[{"$nulls":4},{"$f":"IF(NewlyEnrolled[[#This Row],[Date of Birth]]=\"\",\"\",INT((TODAY()-NewlyEnrolled[[#This Row],[Date of Birth]])/365.25))","v":""}]
[{"$nulls":4},{"$f":"IF(NewlyEnrolled[[#This Row],[Date of Birth]]=\"\",\"\",INT((TODAY()-NewlyEnrolled[[#This Row],[Date of Birth]])/365.25))","v":""}]
[{"$nulls":4},{"$f":"IF(NewlyEnrolled[[#This Row],[Date of Birth]]=\"\",\"\",INT((TODAY()-NewlyEnrolled[[#This Row],[Date of Birth]])/365.25))","v":""}]
[{"$nulls":4},{"$f":"IF(NewlyEnrolled[[#This Row],[Date of Birth]]=\"\",\"\",INT((TODAY()-NewlyEnrolled[[#This Row],[Date of Birth]])/365.25))","v":""}]
[{"$nulls":4},{"$f":"IF(NewlyEnrolled[[#This Row],[Date of Birth]]=\"\",\"\",INT((TODAY()-NewlyEnrolled[[#This Row],[Date of Birth]])/365.25))","v":""}]
[{"$nulls":4},{"$f":"IF(NewlyEnrolled[[#This Row],[Date of Birth]]=\"\",\"\",INT((TODAY()-NewlyEnrolled[[#This Row],[Date of Birth]])/365.25))","v":""}]
[{"$nulls":4},{"$f":"IF(NewlyEnrolled[[#This Row],[Date of Birth]]=\"\",\"\",INT((TODAY()-NewlyEnrolled[[#This Row],[Date of Birth]])/365.25))","v":""}]
[{"$nulls":4},{"$f":"IF(NewlyEnrolled[[#This Row],[Date of Birth]]=\"\",\"\",INT((TODAY()-NewlyEnrolled[[#This Row],[Date of Birth]])/365.25))","v":""}]
[{"$nulls":4},{"$f":"IF(NewlyEnrolled[[#This Row],[Date of Birth]]=\"\",\"\",INT((TODAY()-NewlyEnrolled[[#This Row],[Date of Birth]])/365.25))","v":""}]
[{"$nulls":4},{"$f":"IF(NewlyEnrolled[[#This Row],[Date of Birth]]=\"\",\"\",INT((TODAY()-NewlyEnrolled[[#This Row],[Date of Birth]])/365.25))","v":""}]
[{"$nulls":4},{"$f":"IF(NewlyEnrolled[[#This Row],[Date of Birth]]=\"\",\"\",INT((TODAY()-NewlyEnrolled[[#This Row],[Date of Birth]])/365.25))","v":""}]
[{"$nulls":4},{"$f":"IF(NewlyEnrolled[[#This Row],[Date of Birth]]=\"\",\"\",INT((TODAY()-NewlyEnrolled[[#This Row],[Date of Birth]])/365.25))","v":""}]
[{"$nulls":4},{"$f":"IF(NewlyEnrolled[[#This Row],[Date of Birth]]=\"\",\"\",INT((TODAY()-NewlyEnrolled[[#This Row],[Date of Birth]])/365.25))","v":""}]
[{"$nulls":4},{"$f":"IF(NewlyEnrolled[[#This Row],[Date of Birth]]=\"\",\"\",INT((TODAY()-NewlyEnrolled[[#This Row],[Date of Birth]])/365.25))","v":""}]
[{"$nulls":4},{"$f":"IF(NewlyEnrolled[[#This Row],[Date of Birth]]=\"\",\"\",INT((TODAY()-NewlyEnrolled[[#This Row],[Date of Birth]])/365.25))","v":""}]
[{"$nulls":4},{"$f":"IF(NewlyEnrolled[[#This Row],[Date of Birth]]=\"\",\"\",INT((TODAY()-NewlyEnrolled[[#This Row],[Date of Birth]])/365.25))","v":""}]
[{"$nulls":4},{"$f":"IF(NewlyEnrolled[[#This Row],[Date of Birth]]=\"\",\"\",INT((TODAY()-NewlyEnrolled[[#This Row],[Date of Birth]])/365.25))","v":""}]
[{"$nulls":4},{"$f":"IF(NewlyEnrolled[[#This Row],[Date of Birth]]=\"\",\"\",INT((TODAY()-NewlyEnrolled[[#This Row],[Date of Birth]])/365.25))","v":""}]
[{"$nulls":4},{"$f":"IF(NewlyEnrolled[[#This Row],[Date of Birth]]=\"\",\"\",INT((TODAY()-NewlyEnrolled[[#This Row],[Date of Birth]])/365.25))","v":""}]
[{"$nulls":4},{"$f":"IF(NewlyEnrolled[[#This Row],[Date of Birth]]=\"\",\"\",INT((TODAY()-NewlyEnrolled[[#This Row],[Date of Birth]])/365.25))","v":""}]
[{"$nulls":4},{"$f":"IF(NewlyEnrolled[[#This Row],[Date of Birth]]=\"\",\"\",INT((TODAY()-NewlyEnrolled[[#This Row],[Date of Birth]])/365.25))","v":""}]
[{"$nulls":4},{"$f":"IF(NewlyEnrolled[[#This Row],[Date of Birth]]=\"\",\"\",INT((TODAY()-NewlyEnrolled[[#This Row],[Date of Birth]])/365.25))","v":""}]
[{"$nulls":4},{"$f":"IF(NewlyEnrolled[[#This Row],[Date of Birth]]=\"\",\"\",INT((TODAY()-NewlyEnrolled[[#This Row],[Date of Birth]])/365.25))","v":""}]
[{"$nulls":4},{"$f":"IF(NewlyEnrolled[[#This Row],[Date of Birth]]=\"\",\"\",INT((TODAY()-NewlyEnrolled[[#This Row],[Date of Birth]])/365.25))","v":""}]
[{"$nulls":4},{"$f":"IF(NewlyEnrolled[[#This Row],[Date of Birth]]=\"\",\"\",INT((TODAY()-NewlyEnrolled[[#This Row],[Date of Birth]])/365.25))","v":""}]
[{"$nulls":4},{"$f":"IF(NewlyEnrolled[[#This Row],[Date of Birth]]=\"\",\"\",INT((TODAY()-NewlyEnrolled[[#This Row],[Date of Birth]])/365.25))","v":""}]
[{"$nulls":4},{"$f":"IF(NewlyEnrolled[[#This Row],[Date of Birth]]=\"\",\"\",INT((TODAY()-NewlyEnrolled[[#This Row],[Date of Birth]])/365.25))","v":""}]
[{"$nulls":4},{"$f":"IF(NewlyEnrolled[[#This Row],[Date of Birth]]=\"\",\"\",INT((TODAY()-NewlyEnrolled[[#This Row],[Date of Birth]])/365.25))","v":""}]
[{"$nulls":4},{"$f":"IF(NewlyEnrolled[[#This Row],[Date of Birth]]=\"\",\"\",INT((TODAY()-NewlyEnrolled[[#This Row],[Date of Birth]])/365.25))","v":""}]
[{"$nulls":4},{"$f":"IF(NewlyEnrolled[[#This Row],[Date of Birth]]=\"\",\"\",INT((TODAY()-NewlyEnrolled[[#This Row],[Date of Birth]])/365.25))","v":""}]
[{"$nulls":4},{"$f":"IF(NewlyEnrolled[[#This Row],[Date of Birth]]=\"\",\"\",INT((TODAY()-NewlyEnrolled[[#This Row],[Date of Birth]])/365.25))","v":""}]
[{"$nulls":4},{"$f":"IF(NewlyEnrolled[[#This Row],[Date of Birth]]=\"\",\"\",INT((TODAY()-NewlyEnrolled[[#This Row],[Date of Birth]])/365.25))","v":""}]
[{"$nulls":4},{"$f":"IF(NewlyEnrolled[[#This Row],[Date of Birth]]=\"\",\"\",INT((TODAY()-NewlyEnrolled[[#This Row],[Date of Birth]])/365.25))","v":""}]
[{"$nulls":4},{"$f":"IF(NewlyEnrolled[[#This Row],[Date of Birth]]=\"\",\"\",INT((TODAY()-NewlyEnrolled[[#This Row],[Date of Birth]])/365.25))","v":""}]
[{"$nulls":4},{"$f":"IF(NewlyEnrolled[[#This Row],[Date of Birth]]=\"\",\"\",INT((TODAY()-NewlyEnrolled[[#This Row],[Date of Birth]])/365.25))","v":""}]
[{"$nulls":4},{"$f":"IF(NewlyEnrolled[[#This Row],[Date of Birth]]=\"\",\"\",INT((TODAY()-NewlyEnrolled[[#This Row],[Date of Birth]])/365.25))","v":""}]
[{"$nulls":4},{"$f":"IF(NewlyEnrolled[[#This Row],[Date of Birth]]=\"\",\"\",INT((TODAY()-NewlyEnrolled[[#This Row],[Date of Birth]])/365.25))","v":""}]
[{"$nulls":4},{"$f":"IF(NewlyEnrolled[[#This Row],[Date of Birth]]=\"\",\"\",INT((TODAY()-NewlyEnrolled[[#This Row],[Date of Birth]])/365.25))","v":""}]
[{"$nulls":4},{"$f":"IF(NewlyEnrolled[[#This Row],[Date of Birth]]=\"\",\"\",INT((TODAY()-NewlyEnrolled[[#This Row],[Date of Birth]])/365.25))","v":""}]
[{"$nulls":4},{"$f":"IF(NewlyEnrolled[[#This Row],[Date of Birth]]=\"\",\"\",INT((TODAY()-NewlyEnrolled[[#This Row],[Date of Birth]])/365.25))","v":""}]
[{"$nulls":4},{"$f":"IF(NewlyEnrolled[[#This Row],[Date of Birth]]=\"\",\"\",INT((TODAY()-NewlyEnrolled[[#This Row],[Date of Birth]])/365.25))","v":""}]
[{"$nulls":4},{"$f":"IF(NewlyEnrolled[[#This Row],[Date of Birth]]=\"\",\"\",INT((TODAY()-NewlyEnrolled[[#This Row],[Date of Birth]])/365.25))","v":""}]
[{"$nulls":4},{"$f":"IF(NewlyEnrolled[[#This Row],[Date of Birth]]=\"\",\"\",INT((TODAY()-NewlyEnrolled[[#This Row],[Date of Birth]])/365.25))","v":""}]
[{"$nulls":4},{"$f":"IF(NewlyEnrolled[[#This Row],[Date of Birth]]=\"\",\"\",INT((TODAY()-NewlyEnrolled[[#This Row],[Date of Birth]])/365.25))","v":""}]
[{"$nulls":4},{"$f":"IF(NewlyEnrolled[[#This Row],[Date of Birth]]=\"\",\"\",INT((TODAY()-NewlyEnrolled[[#This Row],[Date of Birth]])/365.25))","v":""}]
[{"$nulls":4},{"$f":"IF(NewlyEnrolled[[#This Row],[Date of Birth]]=\"\",\"\",INT((TODAY()-NewlyEnrolled[[#This Row],[Date of Birth]])/365.25))","v":""}]
[{"$nulls":4},{"$f":"IF(NewlyEnrolled[[#This Row],[Date of Birth]]=\"\",\"\",INT((TODAY()-NewlyEnrolled[[#This Row],[Date of Birth]])/365.25))","v":""}]
[{"$nulls":4},{"$f":"IF(NewlyEnrolled[[#This Row],[Date of Birth]]=\"\",\"\",INT((TODAY()-NewlyEnrolled[[#This Row],[Date of Birth]])/365.25))","v":""}]
[{"$nulls":4},{"$f":"IF(NewlyEnrolled[[#This Row],[Date of Birth]]=\"\",\"\",INT((TODAY()-NewlyEnrolled[[#This Row],[Date of Birth]])/365.25))","v":""}]
[{"$nulls":4},{"$f":"IF(NewlyEnrolled[[#This Row],[Date of Birth]]=\"\",\"\",INT((TODAY()-NewlyEnrolled[[#This Row],[Date of Birth]])/365.25))","v":""}]
[{"$nulls":4},{"$f":"IF(NewlyEnrolled[[#This Row],[Date of Birth]]=\"\",\"\",INT((TODAY()-NewlyEnrolled[[#This Row],[Date of Birth]])/365.25))","v":""}]
[{"$nulls":4},{"$f":"IF(NewlyEnrolled[[#This Row],[Date of Birth]]=\"\",\"\",INT((TODAY()-NewlyEnrolled[[#This Row],[Date of Birth]])/365.25))","v":""}]
[{"$nulls":4},{"$f":"IF(NewlyEnrolled[[#This Row],[Date of Birth]]=\"\",\"\",INT((TODAY()-NewlyEnrolled[[#This Row],[Date of Birth]])/365.25))","v":""}]
[{"$nulls":4},{"$f":"IF(NewlyEnrolled[[#This Row],[Date of Birth]]=\"\",\"\",INT((TODAY()-NewlyEnrolled[[#This Row],[Date of Birth]])/365.25))","v":""}]
[{"$nulls":4},{"$f":"IF(NewlyEnrolled[[#This Row],[Date of Birth]]=\"\",\"\",INT((TODAY()-NewlyEnrolled[[#This Row],[Date of Birth]])/365.25))","v":""}]
[{"$nulls":4},{"$f":"IF(NewlyEnrolled[[#This Row],[Date of Birth]]=\"\",\"\",INT((TODAY()-NewlyEnrolled[[#This Row],[Date of Birth]])/365.25))","v":""}]
[{"$nulls":4},{"$f":"IF(NewlyEnrolled[[#This Row],[Date of Birth]]=\"\",\"\",INT((TODAY()-NewlyEnrolled[[#This Row],[Date of Birth]])/365.25))","v":""}]
[{"$nulls":4},{"$f":"IF(NewlyEnrolled[[#This Row],[Date of Birth]]=\"\",\"\",INT((TODAY()-NewlyEnrolled[[#This Row],[Date of Birth]])/365.25))","v":""}]
[{"$nulls":4},{"$f":"IF(NewlyEnrolled[[#This Row],[Date of Birth]]=\"\",\"\",INT((TODAY()-NewlyEnrolled[[#This Row],[Date of Birth]])/365.25))","v":""}]
[{"$nulls":4},{"$f":"IF(NewlyEnrolled[[#This Row],[Date of Birth]]=\"\",\"\",INT((TODAY()-NewlyEnrolled[[#This Row],[Date of Birth]])/365.25))","v":""}]
[{"$nulls":4},{"$f":"IF(NewlyEnrolled[[#This Row],[Date of Birth]]=\"\",\"\",INT((TODAY()-NewlyEnrolled[[#This Row],[Date of Birth]])/365.25))","v":""}]
[{"$nulls":4},{"$f":"IF(NewlyEnrolled[[#This Row],[Date of Birth]]=\"\",\"\",INT((TODAY()-NewlyEnrolled[[#This Row],[Date of Birth]])/365.25))","v":""}]
[{"$nulls":4},{"$f":"IF(NewlyEnrolled[[#This Row],[Date of Birth]]=\"\",\"\",INT((TODAY()-NewlyEnrolled[[#This Row],[Date of Birth]])/365.25))","v":""}]
[{"$nulls":4},{"$f":"IF(NewlyEnrolled[[#This Row],[Date of Birth]]=\"\",\"\",INT((TODAY()-NewlyEnrolled[[#This Row],[Date of Birth]])/365.25))","v":""}]
[{"$nulls":4},{"$f":"IF(NewlyEnrolled[[#This Row],[Date of Birth]]=\"\",\"\",INT((TODAY()-NewlyEnrolled[[#This Row],[Date of Birth]])/365.25))","v":""}]
[{"$nulls":4},{"$f":"IF(NewlyEnrolled[[#This Row],[Date of Birth]]=\"\",\"\",INT((TODAY()-NewlyEnrolled[[#This Row],[Date of Birth]])/365.25))","v":""}]
[{"$nulls":4},{"$f":"IF(NewlyEnrolled[[#This Row],[Date of Birth]]=\"\",\"\",INT((TODAY()-NewlyEnrolled[[#This Row],[Date of Birth]])/365.25))","v":""}]
[{"$nulls":4},{"$f":"IF(NewlyEnrolled[[#This Row],[Date of Birth]]=\"\",\"\",INT((TODAY()-NewlyEnrolled[[#This Row],[Date of Birth]])/365.25))","v":""}]
[{"$nulls":4},{"$f":"IF(NewlyEnrolled[[#This Row],[Date of Birth]]=\"\",\"\",INT((TODAY()-NewlyEnrolled[[#This Row],[Date of Birth]])/365.25))","v":""}]
[{"$nulls":4},{"$f":"IF(NewlyEnrolled[[#This Row],[Date of Birth]]=\"\",\"\",INT((TODAY()-NewlyEnrolled[[#This Row],[Date of Birth]])/365.25))","v":""}]
[{"$nulls":4},{"$f":"IF(NewlyEnrolled[[#This Row],[Date of Birth]]=\"\",\"\",INT((TODAY()-NewlyEnrolled[[#This Row],[Date of Birth]])/365.25))","v":""}]
[{"$nulls":4},{"$f":"IF(NewlyEnrolled[[#This Row],[Date of Birth]]=\"\",\"\",INT((TODAY()-NewlyEnrolled[[#This Row],[Date of Birth]])/365.25))","v":""}]
[{"$nulls":4},{"$f":"IF(NewlyEnrolled[[#This Row],[Date of Birth]]=\"\",\"\",INT((TODAY()-NewlyEnrolled[[#This Row],[Date of Birth]])/365.25))","v":""}]
[{"$nulls":4},{"$f":"IF(NewlyEnrolled[[#This Row],[Date of Birth]]=\"\",\"\",INT((TODAY()-NewlyEnrolled[[#This Row],[Date of Birth]])/365.25))","v":""}]
[{"$nulls":4},{"$f":"IF(NewlyEnrolled[[#This Row],[Date of Birth]]=\"\",\"\",INT((TODAY()-NewlyEnrolled[[#This Row],[Date of Birth]])/365.25))","v":""}]
[{"$nulls":4},{"$f":"IF(NewlyEnrolled[[#This Row],[Date of Birth]]=\"\",\"\",INT((TODAY()-NewlyEnrolled[[#This Row],[Date of Birth]])/365.25))","v":""}]
[{"$nulls":4},{"$f":"IF(NewlyEnrolled[[#This Row],[Date of Birth]]=\"\",\"\",INT((TODAY()-NewlyEnrolled[[#This Row],[Date of Birth]])/365.25))","v":""}]
[{"$nulls":4},{"$f":"IF(NewlyEnrolled[[#This Row],[Date of Birth]]=\"\",\"\",INT((TODAY()-NewlyEnrolled[[#This Row],[Date of Birth]])/365.25))","v":""}]
[{"$nulls":4},{"$f":"IF(NewlyEnrolled[[#This Row],[Date of Birth]]=\"\",\"\",INT((TODAY()-NewlyEnrolled[[#This Row],[Date of Birth]])/365.25))","v":""}]
[{"$nulls":4},{"$f":"IF(NewlyEnrolled[[#This Row],[Date of Birth]]=\"\",\"\",INT((TODAY()-NewlyEnrolled[[#This Row],[Date of Birth]])/365.25))","v":""}]
[{"$nulls":4},{"$f":"IF(NewlyEnrolled[[#This Row],[Date of Birth]]=\"\",\"\",INT((TODAY()-NewlyEnrolled[[#This Row],[Date of Birth]])/365.25))","v":""}]
[{"$nulls":4},{"$f":"IF(NewlyEnrolled[[#This Row],[Date of Birth]]=\"\",\"\",INT((TODAY()-NewlyEnrolled[[#This Row],[Date of Birth]])/365.25))","v":""}]
[{"$nulls":4},{"$f":"IF(NewlyEnrolled[[#This Row],[Date of Birth]]=\"\",\"\",INT((TODAY()-NewlyEnrolled[[#This Row],[Date of Birth]])/365.25))","v":""}]
[{"$nulls":4},{"$f":"IF(NewlyEnrolled[[#This Row],[Date of Birth]]=\"\",\"\",INT((TODAY()-NewlyEnrolled[[#This Row],[Date of Birth]])/365.25))","v":""}]
[{"$nulls":4},{"$f":"IF(NewlyEnrolled[[#This Row],[Date of Birth]]=\"\",\"\",INT((TODAY()-NewlyEnrolled[[#This Row],[Date of Birth]])/365.25))","v":""}]
[{"$nulls":4},{"$f":"IF(NewlyEnrolled[[#This Row],[Date of Birth]]=\"\",\"\",INT((TODAY()-NewlyEnrolled[[#This Row],[Date of Birth]])/365.25))","v":""}]
[{"$nulls":4},{"$f":"IF(NewlyEnrolled[[#This Row],[Date of Birth]]=\"\",\"\",INT((TODAY()-NewlyEnrolled[[#This Row],[Date of Birth]])/365.25))","v":""}]
[{"$nulls":4},{"$f":"IF(NewlyEnrolled[[#This Row],[Date of Birth]]=\"\",\"\",INT((TODAY()-NewlyEnrolled[[#This Row],[Date of Birth]])/365.25))","v":""}]
[{"$nulls":4},{"$f":"IF(NewlyEnrolled[[#This Row],[Date of Birth]]=\"\",\"\",INT((TODAY()-NewlyEnrolled[[#This Row],[Date of Birth]])/365.25))","v":""}]
[{"$nulls":4},{"$f":"IF(NewlyEnrolled[[#This Row],[Date of Birth]]=\"\",\"\",INT((TODAY()-NewlyEnrolled[[#This Row],[Date of Birth]])/365.25))","v":""}]
[{"$nulls":4},{"$f":"IF(NewlyEnrolled[[#This Row],[Date of Birth]]=\"\",\"\",INT((TODAY()-NewlyEnrolled[[#This Row],[Date of Birth]])/365.25))","v":""}]
[{"$nulls":4},{"$f":"IF(NewlyEnrolled[[#This Row],[Date of Birth]]=\"\",\"\",INT((TODAY()-NewlyEnrolled[[#This Row],[Date of Birth]])/365.25))","v":""}]
[{"$nulls":4},{"$f":"IF(NewlyEnrolled[[#This Row],[Date of Birth]]=\"\",\"\",INT((TODAY()-NewlyEnrolled[[#This Row],[Date of Birth]])/365.25))","v":""}]
[{"$nulls":4},{"$f":"IF(NewlyEnrolled[[#This Row],[Date of Birth]]=\"\",\"\",INT((TODAY()-NewlyEnrolled[[#This Row],[Date of Birth]])/365.25))","v":""}]
[{"$nulls":4},{"$f":"IF(NewlyEnrolled[[#This Row],[Date of Birth]]=\"\",\"\",INT((TODAY()-NewlyEnrolled[[#This Row],[Date of Birth]])/365.25))","v":""}]
[{"$nulls":4},{"$f":"IF(NewlyEnrolled[[#This Row],[Date of Birth]]=\"\",\"\",INT((TODAY()-NewlyEnrolled[[#This Row],[Date of Birth]])/365.25))","v":""}]
[{"$nulls":4},{"$f":"IF(NewlyEnrolled[[#This Row],[Date of Birth]]=\"\",\"\",INT((TODAY()-NewlyEnrolled[[#This Row],[Date of Birth]])/365.25))","v":""}]
[{"$nulls":4},{"$f":"IF(NewlyEnrolled[[#This Row],[Date of Birth]]=\"\",\"\",INT((TODAY()-NewlyEnrolled[[#This Row],[Date of Birth]])/365.25))","v":""}]
[{"$nulls":4},{"$f":"IF(NewlyEnrolled[[#This Row],[Date of Birth]]=\"\",\"\",INT((TODAY()-NewlyEnrolled[[#This Row],[Date of Birth]])/365.25))","v":""}]
[{"$nulls":4},{"$f":"IF(NewlyEnrolled[[#This Row],[Date of Birth]]=\"\",\"\",INT((TODAY()-NewlyEnrolled[[#This Row],[Date of Birth]])/365.25))","v":""}]
[{"$nulls":4},{"$f":"IF(NewlyEnrolled[[#This Row],[Date of Birth]]=\"\",\"\",INT((TODAY()-NewlyEnrolled[[#This Row],[Date of Birth]])/365.25))","v":""}]
[{"$nulls":4},{"$f":"IF(NewlyEnrolled[[#This Row],[Date of Birth]]=\"\",\"\",INT((TODAY()-NewlyEnrolled[[#This Row],[Date of Birth]])/365.25))","v":""}]
[{"$nulls":4},{"$f":"IF(NewlyEnrolled[[#This Row],[Date of Birth]]=\"\",\"\",INT((TODAY()-NewlyEnrolled[[#This Row],[Date of Birth]])/365.25))","v":""}]
[{"$nulls":4},{"$f":"IF(NewlyEnrolled[[#This Row],[Date of Birth]]=\"\",\"\",INT((TODAY()-NewlyEnrolled[[#This Row],[Date of Birth]])/365.25))","v":""}]
[{"$nulls":4},{"$f":"IF(NewlyEnrolled[[#This Row],[Date of Birth]]=\"\",\"\",INT((TODAY()-NewlyEnrolled[[#This Row],[Date of Birth]])/365.25))","v":""}]
[{"$nulls":4},{"$f":"IF(NewlyEnrolled[[#This Row],[Date of Birth]]=\"\",\"\",INT((TODAY()-NewlyEnrolled[[#This Row],[Date of Birth]])/365.25))","v":""}]
[{"$nulls":4},{"$f":"IF(NewlyEnrolled[[#This Row],[Date of Birth]]=\"\",\"\",INT((TODAY()-NewlyEnrolled[[#This Row],[Date of Birth]])/365.25))","v":""}]
[{"$nulls":4},{"$f":"IF(NewlyEnrolled[[#This Row],[Date of Birth]]=\"\",\"\",INT((TODAY()-NewlyEnrolled[[#This Row],[Date of Birth]])/365.25))","v":""}]
[{"$nulls":4},{"$f":"IF(NewlyEnrolled[[#This Row],[Date of Birth]]=\"\",\"\",INT((TODAY()-NewlyEnrolled[[#This Row],[Date of Birth]])/365.25))","v":""}]
[{"$nulls":4},{"$f":"IF(NewlyEnrolled[[#This Row],[Date of Birth]]=\"\",\"\",INT((TODAY()-NewlyEnrolled[[#This Row],[Date of Birth]])/365.25))","v":""}]
[{"$nulls":4},{"$f":"IF(NewlyEnrolled[[#This Row],[Date of Birth]]=\"\",\"\",INT((TODAY()-NewlyEnrolled[[#This Row],[Date of Birth]])/365.25))","v":""}]
[{"$nulls":4},{"$f":"IF(NewlyEnrolled[[#This Row],[Date of Birth]]=\"\",\"\",INT((TODAY()-NewlyEnrolled[[#This Row],[Date of Birth]])/365.25))","v":""}]
[{"$nulls":4},{"$f":"IF(NewlyEnrolled[[#This Row],[Date of Birth]]=\"\",\"\",INT((TODAY()-NewlyEnrolled[[#This Row],[Date of Birth]])/365.25))","v":""}]
[{"$nulls":4},{"$f":"IF(NewlyEnrolled[[#This Row],[Date of Birth]]=\"\",\"\",INT((TODAY()-NewlyEnrolled[[#This Row],[Date of Birth]])/365.25))","v":""}]
[{"$nulls":4},{"$f":"IF(NewlyEnrolled[[#This Row],[Date of Birth]]=\"\",\"\",INT((TODAY()-NewlyEnrolled[[#This Row],[Date of Birth]])/365.25))","v":""}]
[{"$nulls":4},{"$f":"IF(NewlyEnrolled[[#This Row],[Date of Birth]]=\"\",\"\",INT((TODAY()-NewlyEnrolled[[#This Row],[Date of Birth]])/365.25))","v":""}]
[{"$nulls":4},{"$f":"IF(NewlyEnrolled[[#This Row],[Date of Birth]]=\"\",\"\",INT((TODAY()-NewlyEnrolled[[#This Row],[Date of Birth]])/365.25))","v":""}]
[{"$nulls":4},{"$f":"IF(NewlyEnrolled[[#This Row],[Date of Birth]]=\"\",\"\",INT((TODAY()-NewlyEnrolled[[#This Row],[Date of Birth]])/365.25))","v":""}]
[{"$nulls":4},{"$f":"IF(NewlyEnrolled[[#This Row],[Date of Birth]]=\"\",\"\",INT((TODAY()-NewlyEnrolled[[#This Row],[Date of Birth]])/365.25))","v":""}]
[{"$nulls":4},{"$f":"IF(NewlyEnrolled[[#This Row],[Date of Birth]]=\"\",\"\",INT((TODAY()-NewlyEnrolled[[#This Row],[Date of Birth]])/365.25))","v":""}]
[{"$nulls":4},{"$f":"IF(NewlyEnrolled[[#This Row],[Date of Birth]]=\"\",\"\",INT((TODAY()-NewlyEnrolled[[#This Row],[Date of Birth]])/365.25))","v":""}]
[{"$nulls":4},{"$f":"IF(NewlyEnrolled[[#This Row],[Date of Birth]]=\"\",\"\",INT((TODAY()-NewlyEnrolled[[#This Row],[Date of Birth]])/365.25))","v":""}]
[{"$nulls":4},{"$f":"IF(NewlyEnrolled[[#This Row],[Date of Birth]]=\"\",\"\",INT((TODAY()-NewlyEnrolled[[#This Row],[Date of Birth]])/365.25))","v":""}]
[{"$nulls":4},{"$f":"IF(NewlyEnrolled[[#This Row],[Date of Birth]]=\"\",\"\",INT((TODAY()-NewlyEnrolled[[#This Row],[Date of Birth]])/365.25))","v":""}]
[{"$nulls":4},{"$f":"IF(NewlyEnrolled[[#This Row],[Date of Birth]]=\"\",\"\",INT((TODAY()-NewlyEnrolled[[#This Row],[Date of Birth]])/365.25))","v":""}]
[{"$nulls":4},{"$f":"IF(NewlyEnrolled[[#This Row],[Date of Birth]]=\"\",\"\",INT((TODAY()-NewlyEnrolled[[#This Row],[Date of Birth]])/365.25))","v":""}]
[{"$nulls":4},{"$f":"IF(NewlyEnrolled[[#This Row],[Date of Birth]]=\"\",\"\",INT((TODAY()-NewlyEnrolled[[#This Row],[Date of Birth]])/365.25))","v":""}]
[{"$nulls":4},{"$f":"IF(NewlyEnrolled[[#This Row],[Date of Birth]]=\"\",\"\",INT((TODAY()-NewlyEnrolled[[#This Row],[Date of Birth]])/365.25))","v":""}]
[{"$nulls":4},{"$f":"IF(NewlyEnrolled[[#This Row],[Date of Birth]]=\"\",\"\",INT((TODAY()-NewlyEnrolled[[#This Row],[Date of Birth]])/365.25))","v":""}]
[{"$nulls":4},{"$f":"IF(NewlyEnrolled[[#This Row],[Date of Birth]]=\"\",\"\",INT((TODAY()-NewlyEnrolled[[#This Row],[Date of Birth]])/365.25))","v":""}]
[{"$nulls":4},{"$f":"IF(NewlyEnrolled[[#This Row],[Date of Birth]]=\"\",\"\",INT((TODAY()-NewlyEnrolled[[#This Row],[Date of Birth]])/365.25))","v":""}]
[{"$nulls":4},{"$f":"IF(NewlyEnrolled[[#This Row],[Date of Birth]]=\"\",\"\",INT((TODAY()-NewlyEnrolled[[#This Row],[Date of Birth]])/365.25))","v":""}]
[{"$nulls":4},{"$f":"IF(NewlyEnrolled[[#This Row],[Date of Birth]]=\"\",\"\",INT((TODAY()-NewlyEnrolled[[#This Row],[Date of Birth]])/365.25))","v":""}]
[{"$nulls":4},{"$f":"IF(NewlyEnrolled[[#This Row],[Date of Birth]]=\"\",\"\",INT((TODAY()-NewlyEnrolled[[#This Row],[Date of Birth]])/365.25))","v":""}]
[{"$nulls":4},{"$f":"IF(NewlyEnrolled[[#This Row],[Date of Birth]]=\"\",\"\",INT((TODAY()-NewlyEnrolled[[#This Row],[Date of Birth]])/365.25))","v":""}]
[{"$nulls":4},{"$f":"IF(NewlyEnrolled[[#This Row],[Date of Birth]]=\"\",\"\",INT((TODAY()-NewlyEnrolled[[#This Row],[Date of Birth]])/365.25))","v":""}]
[{"$nulls":4},{"$f":"IF(NewlyEnrolled[[#This Row],[Date of Birth]]=\"\",\"\",INT((TODAY()-NewlyEnrolled[[#This Row],[Date of Birth]])/365.25))","v":""}]
[{"$nulls":4},{"$f":"IF(NewlyEnrolled[[#This Row],[Date of Birth]]=\"\",\"\",INT((TODAY()-NewlyEnrolled[[#This Row],[Date of Birth]])/365.25))","v":""}]
[{"$nulls":4},{"$f":"IF(NewlyEnrolled[[#This Row],[Date of Birth]]=\"\",\"\",INT((TODAY()-NewlyEnrolled[[#This Row],[Date of Birth]])/365.25))","v":""}]
[{"$nulls":4},{"$f":"IF(NewlyEnrolled[[#This Row],[Date of Birth]]=\"\",\"\",INT((TODAY()-NewlyEnrolled[[#This Row],[Date of Birth]])/365.25))","v":""}]
[{"$nulls":4},{"$f":"IF(NewlyEnrolled[[#This Row],[Date of Birth]]=\"\",\"\",INT((TODAY()-NewlyEnrolled[[#This Row],[Date of Birth]])/365.25))","v":""}]
[{"$nulls":4},{"$f":"IF(NewlyEnrolled[[#This Row],[Date of Birth]]=\"\",\"\",INT((TODAY()-NewlyEnrolled[[#This Row],[Date of Birth]])/365.25))","v":""}]
[{"$nulls":4},{"$f":"IF(NewlyEnrolled[[#This Row],[Date of Birth]]=\"\",\"\",INT((TODAY()-NewlyEnrolled[[#This Row],[Date of Birth]])/365.25))","v":""}]
[{"$nulls":4},{"$f":"IF(NewlyEnrolled[[#This Row],[Date of Birth]]=\"\",\"\",INT((TODAY()-NewlyEnrolled[[#This Row],[Date of Birth]])/365.25))","v":""}]
[{"$nulls":4},{"$f":"IF(NewlyEnrolled[[#This Row],[Date of Birth]]=\"\",\"\",INT((TODAY()-NewlyEnrolled[[#This Row],[Date of Birth]])/365.25))","v":""}]
[{"$nulls":4},{"$f":"IF(NewlyEnrolled[[#This Row],[Date of Birth]]=\"\",\"\",INT((TODAY()-NewlyEnrolled[[#This Row],[Date of Birth]])/365.25))","v":""}]
[{"$nulls":4},{"$f":"IF(NewlyEnrolled[[#This Row],[Date of Birth]]=\"\",\"\",INT((TODAY()-NewlyEnrolled[[#This Row],[Date of Birth]])/365.25))","v":""}]
[{"$nulls":4},{"$f":"IF(NewlyEnrolled[[#This Row],[Date of Birth]]=\"\",\"\",INT((TODAY()-NewlyEnrolled[[#This Row],[Date of Birth]])/365.25))","v":""}]
[{"$nulls":4},{"$f":"IF(NewlyEnrolled[[#This Row],[Date of Birth]]=\"\",\"\",INT((TODAY()-NewlyEnrolled[[#This Row],[Date of Birth]])/365.25))","v":""}]
[{"$nulls":4},{"$f":"IF(NewlyEnrolled[[#This Row],[Date of Birth]]=\"\",\"\",INT((TODAY()-NewlyEnrolled[[#This Row],[Date of Birth]])/365.25))","v":""}]
[{"$nulls":4},{"$f":"IF(NewlyEnrolled[[#This Row],[Date of Birth]]=\"\",\"\",INT((TODAY()-NewlyEnrolled[[#This Row],[Date of Birth]])/365.25))","v":""}]
[{"$nulls":4},{"$f":"IF(NewlyEnrolled[[#This Row],[Date of Birth]]=\"\",\"\",INT((TODAY()-NewlyEnrolled[[#This Row],[Date of Birth]])/365.25))","v":""}]
[{"$nulls":4},{"$f":"IF(NewlyEnrolled[[#This Row],[Date of Birth]]=\"\",\"\",INT((TODAY()-NewlyEnrolled[[#This Row],[Date of Birth]])/365.25))","v":""}]
[{"$nulls":4},{"$f":"IF(NewlyEnrolled[[#This Row],[Date of Birth]]=\"\",\"\",INT((TODAY()-NewlyEnrolled[[#This Row],[Date of Birth]])/365.25))","v":""}]
[{"$nulls":4},{"$f":"IF(NewlyEnrolled[[#This Row],[Date of Birth]]=\"\",\"\",INT((TODAY()-NewlyEnrolled[[#This Row],[Date of Birth]])/365.25))","v":""}]
[{"$nulls":4},{"$f":"IF(NewlyEnrolled[[#This Row],[Date of Birth]]=\"\",\"\",INT((TODAY()-NewlyEnrolled[[#This Row],[Date of Birth]])/365.25))","v":""}]
[{"$nulls":4},{"$f":"IF(NewlyEnrolled[[#This Row],[Date of Birth]]=\"\",\"\",INT((TODAY()-NewlyEnrolled[[#This Row],[Date of Birth]])/365.25))","v":""}]
[{"$nulls":4},{"$f":"IF(NewlyEnrolled[[#This Row],[Date of Birth]]=\"\",\"\",INT((TODAY()-NewlyEnrolled[[#This Row],[Date of Birth]])/365.25))","v":""}]
[{"$nulls":4},{"$f":"IF(NewlyEnrolled[[#This Row],[Date of Birth]]=\"\",\"\",INT((TODAY()-NewlyEnrolled[[#This Row],[Date of Birth]])/365.25))","v":""}]
[{"$nulls":4},{"$f":"IF(NewlyEnrolled[[#This Row],[Date of Birth]]=\"\",\"\",INT((TODAY()-NewlyEnrolled[[#This Row],[Date of Birth]])/365.25))","v":""}]
[{"$nulls":4},{"$f":"IF(NewlyEnrolled[[#This Row],[Date of Birth]]=\"\",\"\",INT((TODAY()-NewlyEnrolled[[#This Row],[Date of Birth]])/365.25))","v":""}]
[{"$nulls":4},{"$f":"IF(NewlyEnrolled[[#This Row],[Date of Birth]]=\"\",\"\",INT((TODAY()-NewlyEnrolled[[#This Row],[Date of Birth]])/365.25))","v":""}]
[{"$nulls":4},{"$f":"IF(NewlyEnrolled[[#This Row],[Date of Birth]]=\"\",\"\",INT((TODAY()-NewlyEnrolled[[#This Row],[Date of Birth]])/365.25))","v":""}]
[{"$nulls":4},{"$f":"IF(NewlyEnrolled[[#This Row],[Date of Birth]]=\"\",\"\",INT((TODAY()-NewlyEnrolled[[#This Row],[Date of Birth]])/365.25))","v":""}]
[{"$nulls":4},{"$f":"IF(NewlyEnrolled[[#This Row],[Date of Birth]]=\"\",\"\",INT((TODAY()-NewlyEnrolled[[#This Row],[Date of Birth]])/365.25))","v":""}]
[{"$nulls":4},{"$f":"IF(NewlyEnrolled[[#This Row],[Date of Birth]]=\"\",\"\",INT((TODAY()-NewlyEnrolled[[#This Row],[Date of Birth]])/365.25))","v":""}]
[{"$nulls":4},{"$f":"IF(NewlyEnrolled[[#This Row],[Date of Birth]]=\"\",\"\",INT((TODAY()-NewlyEnrolled[[#This Row],[Date of Birth]])/365.25))","v":""}]
[{"$nulls":4},{"$f":"IF(NewlyEnrolled[[#This Row],[Date of Birth]]=\"\",\"\",INT((TODAY()-NewlyEnrolled[[#This Row],[Date of Birth]])/365.25))","v":""}]
[{"$nulls":4},{"$f":"IF(NewlyEnrolled[[#This Row],[Date of Birth]]=\"\",\"\",INT((TODAY()-NewlyEnrolled[[#This Row],[Date of Birth]])/365.25))","v":""}]
[{"$nulls":4},{"$f":"IF(NewlyEnrolled[[#This Row],[Date of Birth]]=\"\",\"\",INT((TODAY()-NewlyEnrolled[[#This Row],[Date of Birth]])/365.25))","v":""}]
[{"$nulls":4},{"$f":"IF(NewlyEnrolled[[#This Row],[Date of Birth]]=\"\",\"\",INT((TODAY()-NewlyEnrolled[[#This Row],[Date of Birth]])/365.25))","v":""}]
[{"$nulls":4},{"$f":"IF(NewlyEnrolled[[#This Row],[Date of Birth]]=\"\",\"\",INT((TODAY()-NewlyEnrolled[[#This Row],[Date of Birth]])/365.25))","v":""}]
[{"$nulls":4},{"$f":"IF(NewlyEnrolled[[#This Row],[Date of Birth]]=\"\",\"\",INT((TODAY()-NewlyEnrolled[[#This Row],[Date of Birth]])/365.25))","v":""}]
[{"$nulls":4},{"$f":"IF(NewlyEnrolled[[#This Row],[Date of Birth]]=\"\",\"\",INT((TODAY()-NewlyEnrolled[[#This Row],[Date of Birth]])/365.25))","v":""}]
[{"$nulls":4},{"$f":"IF(NewlyEnrolled[[#This Row],[Date of Birth]]=\"\",\"\",INT((TODAY()-NewlyEnrolled[[#This Row],[Date of Birth]])/365.25))","v":""}]
[{"$nulls":4},{"$f":"IF(NewlyEnrolled[[#This Row],[Date of Birth]]=\"\",\"\",INT((TODAY()-NewlyEnrolled[[#This Row],[Date of Birth]])/365.25))","v":""}]
[{"$nulls":4},{"$f":"IF(NewlyEnrolled[[#This Row],[Date of Birth]]=\"\",\"\",INT((TODAY()-NewlyEnrolled[[#This Row],[Date of Birth]])/365.25))","v":""}]
[{"$nulls":4},{"$f":"IF(NewlyEnrolled[[#This Row],[Date of Birth]]=\"\",\"\",INT((TODAY()-NewlyEnrolled[[#This Row],[Date of Birth]])/365.25))","v":""}]
[{"$nulls":4},{"$f":"IF(NewlyEnrolled[[#This Row],[Date of Birth]]=\"\",\"\",INT((TODAY()-NewlyEnrolled[[#This Row],[Date of Birth]])/365.25))","v":""}]
[{"$nulls":4},{"$f":"IF(NewlyEnrolled[[#This Row],[Date of Birth]]=\"\",\"\",INT((TODAY()-NewlyEnrolled[[#This Row],[Date of Birth]])/365.25))","v":""}]
[{"$nulls":4},{"$f":"IF(NewlyEnrolled[[#This Row],[Date of Birth]]=\"\",\"\",INT((TODAY()-NewlyEnrolled[[#This Row],[Date of Birth]])/365.25))","v":""}]
[{"$nulls":4},{"$f":"IF(NewlyEnrolled[[#This Row],[Date of Birth]]=\"\",\"\",INT((TODAY()-NewlyEnrolled[[#This Row],[Date of Birth]])/365.25))","v":""}]
[{"$nulls":4},{"$f":"IF(NewlyEnrolled[[#This Row],[Date of Birth]]=\"\",\"\",INT((TODAY()-NewlyEnrolled[[#This Row],[Date of Birth]])/365.25))","v":""}]
[{"$nulls":4},{"$f":"IF(NewlyEnrolled[[#This Row],[Date of Birth]]=\"\",\"\",INT((TODAY()-NewlyEnrolled[[#This Row],[Date of Birth]])/365.25))","v":""}]
[{"$nulls":4},{"$f":"IF(NewlyEnrolled[[#This Row],[Date of Birth]]=\"\",\"\",INT((TODAY()-NewlyEnrolled[[#This Row],[Date of Birth]])/365.25))","v":""}]
[{"$nulls":4},{"$f":"IF(NewlyEnrolled[[#This Row],[Date of Birth]]=\"\",\"\",INT((TODAY()-NewlyEnrolled[[#This Row],[Date of Birth]])/365.25))","v":""}]
[{"$nulls":4},{"$f":"IF(NewlyEnrolled[[#This Row],[Date of Birth]]=\"\",\"\",INT((TODAY()-NewlyEnrolled[[#This Row],[Date of Birth]])/365.25))","v":""}]
[{"$nulls":4},{"$f":"IF(NewlyEnrolled[[#This Row],[Date of Birth]]=\"\",\"\",INT((TODAY()-NewlyEnrolled[[#This Row],[Date of Birth]])/365.25))","v":""}]
[{"$nulls":4},{"$f":"IF(NewlyEnrolled[[#This Row],[Date of Birth]]=\"\",\"\",INT((TODAY()-NewlyEnrolled[[#This Row],[Date of Birth]])/365.25))","v":""}]
[{"$nulls":4},{"$f":"IF(NewlyEnrolled[[#This Row],[Date of Birth]]=\"\",\"\",INT((TODAY()-NewlyEnrolled[[#This Row],[Date of Birth]])/365.25))","v":""}]
[{"$nulls":4},{"$f":"IF(NewlyEnrolled[[#This Row],[Date of Birth]]=\"\",\"\",INT((TODAY()-NewlyEnrolled[[#This Row],[Date of Birth]])/365.25))","v":""}]
[{"$nulls":4},{"$f":"IF(NewlyEnrolled[[#This Row],[Date of Birth]]=\"\",\"\",INT((TODAY()-NewlyEnrolled[[#This Row],[Date of Birth]])/365.25))","v":""}]
[{"$nulls":4},{"$f":"IF(NewlyEnrolled[[#This Row],[Date of Birth]]=\"\",\"\",INT((TODAY()-NewlyEnrolled[[#This Row],[Date of Birth]])/365.25))","v":""}]
[{"$nulls":4},{"$f":"IF(NewlyEnrolled[[#This Row],[Date of Birth]]=\"\",\"\",INT((TODAY()-NewlyEnrolled[[#This Row],[Date of Birth]])/365.25))","v":""}]
[{"$nulls":4},{"$f":"IF(NewlyEnrolled[[#This Row],[Date of Birth]]=\"\",\"\",INT((TODAY()-NewlyEnrolled[[#This Row],[Date of Birth]])/365.25))","v":""}]
[{"$nulls":4},{"$f":"IF(NewlyEnrolled[[#This Row],[Date of Birth]]=\"\",\"\",INT((TODAY()-NewlyEnrolled[[#This Row],[Date of Birth]])/365.25))","v":""}]
[{"$nulls":4},{"$f":"IF(NewlyEnrolled[[#This Row],[Date of Birth]]=\"\",\"\",INT((TODAY()-NewlyEnrolled[[#This Row],[Date of Birth]])/365.25))","v":""}]
[{"$nulls":4},{"$f":"IF(NewlyEnrolled[[#This Row],[Date of Birth]]=\"\",\"\",INT((TODAY()-NewlyEnrolled[[#This Row],[Date of Birth]])/365.25))","v":""}]
[{"$nulls":4},{"$f":"IF(NewlyEnrolled[[#This Row],[Date of Birth]]=\"\",\"\",INT((TODAY()-NewlyEnrolled[[#This Row],[Date of Birth]])/365.25))","v":""}]
[{"$nulls":4},{"$f":"IF(NewlyEnrolled[[#This Row],[Date of Birth]]=\"\",\"\",INT((TODAY()-NewlyEnrolled[[#This Row],[Date of Birth]])/365.25))","v":""}]
[{"$nulls":4},{"$f":"IF(NewlyEnrolled[[#This Row],[Date of Birth]]=\"\",\"\",INT((TODAY()-NewlyEnrolled[[#This Row],[Date of Birth]])/365.25))","v":""}]
[{"$nulls":4},{"$f":"IF(NewlyEnrolled[[#This Row],[Date of Birth]]=\"\",\"\",INT((TODAY()-NewlyEnrolled[[#This Row],[Date of Birth]])/365.25))","v":""}]
[{"$nulls":4},{"$f":"IF(NewlyEnrolled[[#This Row],[Date of Birth]]=\"\",\"\",INT((TODAY()-NewlyEnrolled[[#This Row],[Date of Birth]])/365.25))","v":""}]
[{"$nulls":4},{"$f":"IF(NewlyEnrolled[[#This Row],[Date of Birth]]=\"\",\"\",INT((TODAY()-NewlyEnrolled[[#This Row],[Date of Birth]])/365.25))","v":""}]
[{"$nulls":4},{"$f":"IF(NewlyEnrolled[[#This Row],[Date of Birth]]=\"\",\"\",INT((TODAY()-NewlyEnrolled[[#This Row],[Date of Birth]])/365.25))","v":""}]
[{"$nulls":4},{"$f":"IF(NewlyEnrolled[[#This Row],[Date of Birth]]=\"\",\"\",INT((TODAY()-NewlyEnrolled[[#This Row],[Date of Birth]])/365.25))","v":""}]
[{"$nulls":4},{"$f":"IF(NewlyEnrolled[[#This Row],[Date of Birth]]=\"\",\"\",INT((TODAY()-NewlyEnrolled[[#This Row],[Date of Birth]])/365.25))","v":""}]
[{"$nulls":4},{"$f":"IF(NewlyEnrolled[[#This Row],[Date of Birth]]=\"\",\"\",INT((TODAY()-NewlyEnrolled[[#This Row],[Date of Birth]])/365.25))","v":""}]
[{"$nulls":4},{"$f":"IF(NewlyEnrolled[[#This Row],[Date of Birth]]=\"\",\"\",INT((TODAY()-NewlyEnrolled[[#This Row],[Date of Birth]])/365.25))","v":""}]
[{"$nulls":4},{"$f":"IF(NewlyEnrolled[[#This Row],[Date of Birth]]=\"\",\"\",INT((TODAY()-NewlyEnrolled[[#This Row],[Date of Birth]])/365.25))","v":""}]
[{"$nulls":4},{"$f":"IF(NewlyEnrolled[[#This Row],[Date of Birth]]=\"\",\"\",INT((TODAY()-NewlyEnrolled[[#This Row],[Date of Birth]])/365.25))","v":""}]
[{"$nulls":4},{"$f":"IF(NewlyEnrolled[[#This Row],[Date of Birth]]=\"\",\"\",INT((TODAY()-NewlyEnrolled[[#This Row],[Date of Birth]])/365.25))","v":""}]
[{"$nulls":4},{"$f":"IF(NewlyEnrolled[[#This Row],[Date of Birth]]=\"\",\"\",INT((TODAY()-NewlyEnrolled[[#This Row],[Date of Birth]])/365.25))","v":""}]
[{"$nulls":4},{"$f":"IF(NewlyEnrolled[[#This Row],[Date of Birth]]=\"\",\"\",INT((TODAY()-NewlyEnrolled[[#This Row],[Date of Birth]])/365.25))","v":""}]
[{"$nulls":4},{"$f":"IF(NewlyEnrolled[[#This Row],[Date of Birth]]=\"\",\"\",INT((TODAY()-NewlyEnrolled[[#This Row],[Date of Birth]])/365.25))","v":""}]
[{"$nulls":4},{"$f":"IF(NewlyEnrolled[[#This Row],[Date of Birth]]=\"\",\"\",INT((TODAY()-NewlyEnrolled[[#This Row],[Date of Birth]])/365.25))","v":""}]
[{"$nulls":4},{"$f":"IF(NewlyEnrolled[[#This Row],[Date of Birth]]=\"\",\"\",INT((TODAY()-NewlyEnrolled[[#This Row],[Date of Birth]])/365.25))","v":""}]
[{"$nulls":4},{"$f":"IF(NewlyEnrolled[[#This Row],[Date of Birth]]=\"\",\"\",INT((TODAY()-NewlyEnrolled[[#This Row],[Date of Birth]])/365.25))","v":""}]
[{"$nulls":4},{"$f":"IF(NewlyEnrolled[[#This Row],[Date of Birth]]=\"\",\"\",INT((TODAY()-NewlyEnrolled[[#This Row],[Date of Birth]])/365.25))","v":""}]
[{"$nulls":4},{"$f":"IF(NewlyEnrolled[[#This Row],[Date of Birth]]=\"\",\"\",INT((TODAY()-NewlyEnrolled[[#This Row],[Date of Birth]])/365.25))","v":""}]
[{"$nulls":4},{"$f":"IF(NewlyEnrolled[[#This Row],[Date of Birth]]=\"\",\"\",INT((TODAY()-NewlyEnrolled[[#This Row],[Date of Birth]])/365.25))","v":""}]
[{"$nulls":4},{"$f":"IF(NewlyEnrolled[[#This Row],[Date of Birth]]=\"\",\"\",INT((TODAY()-NewlyEnrolled[[#This Row],[Date of Birth]])/365.25))","v":""}]
[{"$nulls":4},{"$f":"IF(NewlyEnrolled[[#This Row],[Date of Birth]]=\"\",\"\",INT((TODAY()-NewlyEnrolled[[#This Row],[Date of Birth]])/365.25))","v":""}]
[{"$nulls":4},{"$f":"IF(NewlyEnrolled[[#This Row],[Date of Birth]]=\"\",\"\",INT((TODAY()-NewlyEnrolled[[#This Row],[Date of Birth]])/365.25))","v":""}]
[{"$nulls":4},{"$f":"IF(NewlyEnrolled[[#This Row],[Date of Birth]]=\"\",\"\",INT((TODAY()-NewlyEnrolled[[#This Row],[Date of Birth]])/365.25))","v":""}]
[{"$nulls":4},{"$f":"IF(NewlyEnrolled[[#This Row],[Date of Birth]]=\"\",\"\",INT((TODAY()-NewlyEnrolled[[#This Row],[Date of Birth]])/365.25))","v":""}]
[{"$nulls":4},{"$f":"IF(NewlyEnrolled[[#This Row],[Date of Birth]]=\"\",\"\",INT((TODAY()-NewlyEnrolled[[#This Row],[Date of Birth]])/365.25))","v":""}]
[{"$nulls":4},{"$f":"IF(NewlyEnrolled[[#This Row],[Date of Birth]]=\"\",\"\",INT((TODAY()-NewlyEnrolled[[#This Row],[Date of Birth]])/365.25))","v":""}]
[{"$nulls":4},{"$f":"IF(NewlyEnrolled[[#This Row],[Date of Birth]]=\"\",\"\",INT((TODAY()-NewlyEnrolled[[#This Row],[Date of Birth]])/365.25))","v":""}]
[{"$nulls":4},{"$f":"IF(NewlyEnrolled[[#This Row],[Date of Birth]]=\"\",\"\",INT((TODAY()-NewlyEnrolled[[#This Row],[Date of Birth]])/365.25))","v":""}]
[{"$nulls":4},{"$f":"IF(NewlyEnrolled[[#This Row],[Date of Birth]]=\"\",\"\",INT((TODAY()-NewlyEnrolled[[#This Row],[Date of Birth]])/365.25))","v":""}]
[{"$nulls":4},{"$f":"IF(NewlyEnrolled[[#This Row],[Date of Birth]]=\"\",\"\",INT((TODAY()-NewlyEnrolled[[#This Row],[Date of Birth]])/365.25))","v":""}]
[{"$nulls":4},{"$f":"IF(NewlyEnrolled[[#This Row],[Date of Birth]]=\"\",\"\",INT((TODAY()-NewlyEnrolled[[#This Row],[Date of Birth]])/365.25))","v":""}]
[{"$nulls":4},{"$f":"IF(NewlyEnrolled[[#This Row],[Date of Birth]]=\"\",\"\",INT((TODAY()-NewlyEnrolled[[#This Row],[Date of Birth]])/365.25))","v":""}]
[{"$nulls":4},{"$f":"IF(NewlyEnrolled[[#This Row],[Date of Birth]]=\"\",\"\",INT((TODAY()-NewlyEnrolled[[#This Row],[Date of Birth]])/365.25))","v":""}]
[{"$nulls":4},{"$f":"IF(NewlyEnrolled[[#This Row],[Date of Birth]]=\"\",\"\",INT((TODAY()-NewlyEnrolled[[#This Row],[Date of Birth]])/365.25))","v":""}]
[{"$nulls":4},{"$f":"IF(NewlyEnrolled[[#This Row],[Date of Birth]]=\"\",\"\",INT((TODAY()-NewlyEnrolled[[#This Row],[Date of Birth]])/365.25))","v":""}]
[{"$nulls":4},{"$f":"IF(NewlyEnrolled[[#This Row],[Date of Birth]]=\"\",\"\",INT((TODAY()-NewlyEnrolled[[#This Row],[Date of Birth]])/365.25))","v":""}]
[{"$nulls":4},{"$f":"IF(NewlyEnrolled[[#This Row],[Date of Birth]]=\"\",\"\",INT((TODAY()-NewlyEnrolled[[#This Row],[Date of Birth]])/365.25))","v":""}]
[{"$nulls":4},{"$f":"IF(NewlyEnrolled[[#This Row],[Date of Birth]]=\"\",\"\",INT((TODAY()-NewlyEnrolled[[#This Row],[Date of Birth]])/365.25))","v":""}]
[{"$nulls":4},{"$f":"IF(NewlyEnrolled[[#This Row],[Date of Birth]]=\"\",\"\",INT((TODAY()-NewlyEnrolled[[#This Row],[Date of Birth]])/365.25))","v":""}]
[{"$nulls":4},{"$f":"IF(NewlyEnrolled[[#This Row],[Date of Birth]]=\"\",\"\",INT((TODAY()-NewlyEnrolled[[#This Row],[Date of Birth]])/365.25))","v":""}]
[{"$nulls":4},{"$f":"IF(NewlyEnrolled[[#This Row],[Date of Birth]]=\"\",\"\",INT((TODAY()-NewlyEnrolled[[#This Row],[Date of Birth]])/365.25))","v":""}]
[{"$nulls":4},{"$f":"IF(NewlyEnrolled[[#This Row],[Date of Birth]]=\"\",\"\",INT((TODAY()-NewlyEnrolled[[#This Row],[Date of Birth]])/365.25))","v":""}]
[{"$nulls":4},{"$f":"IF(NewlyEnrolled[[#This Row],[Date of Birth]]=\"\",\"\",INT((TODAY()-NewlyEnrolled[[#This Row],[Date of Birth]])/365.25))","v":""}]
[{"$nulls":4},{"$f":"IF(NewlyEnrolled[[#This Row],[Date of Birth]]=\"\",\"\",INT((TODAY()-NewlyEnrolled[[#This Row],[Date of Birth]])/365.25))","v":""}]
[{"$nulls":4},{"$f":"IF(NewlyEnrolled[[#This Row],[Date of Birth]]=\"\",\"\",INT((TODAY()-NewlyEnrolled[[#This Row],[Date of Birth]])/365.25))","v":""}]
[{"$nulls":4},{"$f":"IF(NewlyEnrolled[[#This Row],[Date of Birth]]=\"\",\"\",INT((TODAY()-NewlyEnrolled[[#This Row],[Date of Birth]])/365.25))","v":""}]
[{"$nulls":4},{"$f":"IF(NewlyEnrolled[[#This Row],[Date of Birth]]=\"\",\"\",INT((TODAY()-NewlyEnrolled[[#This Row],[Date of Birth]])/365.25))","v":""}]
[{"$nulls":4},{"$f":"IF(NewlyEnrolled[[#This Row],[Date of Birth]]=\"\",\"\",INT((TODAY()-NewlyEnrolled[[#This Row],[Date of Birth]])/365.25))","v":""}]
[{"$nulls":4},{"$f":"IF(NewlyEnrolled[[#This Row],[Date of Birth]]=\"\",\"\",INT((TODAY()-NewlyEnrolled[[#This Row],[Date of Birth]])/365.25))","v":""}]
[{"$nulls":4},{"$f":"IF(NewlyEnrolled[[#This Row],[Date of Birth]]=\"\",\"\",INT((TODAY()-NewlyEnrolled[[#This Row],[Date of Birth]])/365.25))","v":""}]
[{"$nulls":4},{"$f":"IF(NewlyEnrolled[[#This Row],[Date of Birth]]=\"\",\"\",INT((TODAY()-NewlyEnrolled[[#This Row],[Date of Birth]])/365.25))","v":""}]
[{"$nulls":4},{"$f":"IF(NewlyEnrolled[[#This Row],[Date of Birth]]=\"\",\"\",INT((TODAY()-NewlyEnrolled[[#This Row],[Date of Birth]])/365.25))","v":""}]
[{"$nulls":4},{"$f":"IF(NewlyEnrolled[[#This Row],[Date of Birth]]=\"\",\"\",INT((TODAY()-NewlyEnrolled[[#This Row],[Date of Birth]])/365.25))","v":""}]
[{"$nulls":4},{"$f":"IF(NewlyEnrolled[[#This Row],[Date of Birth]]=\"\",\"\",INT((TODAY()-NewlyEnrolled[[#This Row],[Date of Birth]])/365.25))","v":""}]
[{"$nulls":4},{"$f":"IF(NewlyEnrolled[[#This Row],[Date of Birth]]=\"\",\"\",INT((TODAY()-NewlyEnrolled[[#This Row],[Date of Birth]])/365.25))","v":""}]
[{"$nulls":4},{"$f":"IF(NewlyEnrolled[[#This Row],[Date of Birth]]=\"\",\"\",INT((TODAY()-NewlyEnrolled[[#This Row],[Date of Birth]])/365.25))","v":""}]
[{"$nulls":4},{"$f":"IF(NewlyEnrolled[[#This Row],[Date of Birth]]=\"\",\"\",INT((TODAY()-NewlyEnrolled[[#This Row],[Date of Birth]])/365.25))","v":""}]
[{"$nulls":4},{"$f":"IF(NewlyEnrolled[[#This Row],[Date of Birth]]=\"\",\"\",INT((TODAY()-NewlyEnrolled[[#This Row],[Date of Birth]])/365.25))","v":""}]
[{"$nulls":4},{"$f":"IF(NewlyEnrolled[[#This Row],[Date of Birth]]=\"\",\"\",INT((TODAY()-NewlyEnrolled[[#This Row],[Date of Birth]])/365.25))","v":""}]
[{"$nulls":4},{"$f":"IF(NewlyEnrolled[[#This Row],[Date of Birth]]=\"\",\"\",INT((TODAY()-NewlyEnrolled[[#This Row],[Date of Birth]])/365.25))","v":""}]
[{"$nulls":4},{"$f":"IF(NewlyEnrolled[[#This Row],[Date of Birth]]=\"\",\"\",INT((TODAY()-NewlyEnrolled[[#This Row],[Date of Birth]])/365.25))","v":""}]
[{"$nulls":4},{"$f":"IF(NewlyEnrolled[[#This Row],[Date of Birth]]=\"\",\"\",INT((TODAY()-NewlyEnrolled[[#This Row],[Date of Birth]])/365.25))","v":""}]
[{"$nulls":4},{"$f":"IF(NewlyEnrolled[[#This Row],[Date of Birth]]=\"\",\"\",INT((TODAY()-NewlyEnrolled[[#This Row],[Date of Birth]])/365.25))","v":""}]
[{"$nulls":4},{"$f":"IF(NewlyEnrolled[[#This Row],[Date of Birth]]=\"\",\"\",INT((TODAY()-NewlyEnrolled[[#This Row],[Date of Birth]])/365.25))","v":""}]
[{"$nulls":4},{"$f":"IF(NewlyEnrolled[[#This Row],[Date of Birth]]=\"\",\"\",INT((TODAY()-NewlyEnrolled[[#This Row],[Date of Birth]])/365.25))","v":""}]
[{"$nulls":4},{"$f":"IF(NewlyEnrolled[[#This Row],[Date of Birth]]=\"\",\"\",INT((TODAY()-NewlyEnrolled[[#This Row],[Date of Birth]])/365.25))","v":""}]
[{"$nulls":4},{"$f":"IF(NewlyEnrolled[[#This Row],[Date of Birth]]=\"\",\"\",INT((TODAY()-NewlyEnrolled[[#This Row],[Date of Birth]])/365.25))","v":""}]
[{"$nulls":4},{"$f":"IF(NewlyEnrolled[[#This Row],[Date of Birth]]=\"\",\"\",INT((TODAY()-NewlyEnrolled[[#This Row],[Date of Birth]])/365.25))","v":""}]
[{"$nulls":4},{"$f":"IF(NewlyEnrolled[[#This Row],[Date of Birth]]=\"\",\"\",INT((TODAY()-NewlyEnrolled[[#This Row],[Date of Birth]])/365.25))","v":""}]
[{"$nulls":4},{"$f":"IF(NewlyEnrolled[[#This Row],[Date of Birth]]=\"\",\"\",INT((TODAY()-NewlyEnrolled[[#This Row],[Date of Birth]])/365.25))","v":""}]
[{"$nulls":4},{"$f":"IF(NewlyEnrolled[[#This Row],[Date of Birth]]=\"\",\"\",INT((TODAY()-NewlyEnrolled[[#This Row],[Date of Birth]])/365.25))","v":""}]
[{"$nulls":4},{"$f":"IF(NewlyEnrolled[[#This Row],[Date of Birth]]=\"\",\"\",INT((TODAY()-NewlyEnrolled[[#This Row],[Date of Birth]])/365.25))","v":""}]
[{"$nulls":4},{"$f":"IF(NewlyEnrolled[[#This Row],[Date of Birth]]=\"\",\"\",INT((TODAY()-NewlyEnrolled[[#This Row],[Date of Birth]])/365.25))","v":""}]
[{"$nulls":4},{"$f":"IF(NewlyEnrolled[[#This Row],[Date of Birth]]=\"\",\"\",INT((TODAY()-NewlyEnrolled[[#This Row],[Date of Birth]])/365.25))","v":""}]
[{"$nulls":4},{"$f":"IF(NewlyEnrolled[[#This Row],[Date of Birth]]=\"\",\"\",INT((TODAY()-NewlyEnrolled[[#This Row],[Date of Birth]])/365.25))","v":""}]
[{"$nulls":4},{"$f":"IF(NewlyEnrolled[[#This Row],[Date of Birth]]=\"\",\"\",INT((TODAY()-NewlyEnrolled[[#This Row],[Date of Birth]])/365.25))","v":""}]
[{"$nulls":4},{"$f":"IF(NewlyEnrolled[[#This Row],[Date of Birth]]=\"\",\"\",INT((TODAY()-NewlyEnrolled[[#This Row],[Date of Birth]])/365.25))","v":""}]
[{"$nulls":4},{"$f":"IF(NewlyEnrolled[[#This Row],[Date of Birth]]=\"\",\"\",INT((TODAY()-NewlyEnrolled[[#This Row],[Date of Birth]])/365.25))","v":""}]
[{"$nulls":4},{"$f":"IF(NewlyEnrolled[[#This Row],[Date of Birth]]=\"\",\"\",INT((TODAY()-NewlyEnrolled[[#This Row],[Date of Birth]])/365.25))","v":""}]
[{"$nulls":4},{"$f":"IF(NewlyEnrolled[[#This Row],[Date of Birth]]=\"\",\"\",INT((TODAY()-NewlyEnrolled[[#This Row],[Date of Birth]])/365.25))","v":""}]
[{"$nulls":4},{"$f":"IF(NewlyEnrolled[[#This Row],[Date of Birth]]=\"\",\"\",INT((TODAY()-NewlyEnrolled[[#This Row],[Date of Birth]])/365.25))","v":""}]
[{"$nulls":4},{"$f":"IF(NewlyEnrolled[[#This Row],[Date of Birth]]=\"\",\"\",INT((TODAY()-NewlyEnrolled[[#This Row],[Date of Birth]])/365.25))","v":""}]
[{"$nulls":4},{"$f":"IF(NewlyEnrolled[[#This Row],[Date of Birth]]=\"\",\"\",INT((TODAY()-NewlyEnrolled[[#This Row],[Date of Birth]])/365.25))","v":""}]
[{"$nulls":4},{"$f":"IF(NewlyEnrolled[[#This Row],[Date of Birth]]=\"\",\"\",INT((TODAY()-NewlyEnrolled[[#This Row],[Date of Birth]])/365.25))","v":""}]
[{"$nulls":4},{"$f":"IF(NewlyEnrolled[[#This Row],[Date of Birth]]=\"\",\"\",INT((TODAY()-NewlyEnrolled[[#This Row],[Date of Birth]])/365.25))","v":""}]
[{"$nulls":4},{"$f":"IF(NewlyEnrolled[[#This Row],[Date of Birth]]=\"\",\"\",INT((TODAY()-NewlyEnrolled[[#This Row],[Date of Birth]])/365.25))","v":""}]
[{"$nulls":4},{"$f":"IF(NewlyEnrolled[[#This Row],[Date of Birth]]=\"\",\"\",INT((TODAY()-NewlyEnrolled[[#This Row],[Date of Birth]])/365.25))","v":""}]
[{"$nulls":4},{"$f":"IF(NewlyEnrolled[[#This Row],[Date of Birth]]=\"\",\"\",INT((TODAY()-NewlyEnrolled[[#This Row],[Date of Birth]])/365.25))","v":""}]
[{"$nulls":4},{"$f":"IF(NewlyEnrolled[[#This Row],[Date of Birth]]=\"\",\"\",INT((TODAY()-NewlyEnrolled[[#This Row],[Date of Birth]])/365.25))","v":""}]
[{"$nulls":4},{"$f":"IF(NewlyEnrolled[[#This Row],[Date of Birth]]=\"\",\"\",INT((TODAY()-NewlyEnrolled[[#This Row],[Date of Birth]])/365.25))","v":""}]
[{"$nulls":4},{"$f":"IF(NewlyEnrolled[[#This Row],[Date of Birth]]=\"\",\"\",INT((TODAY()-NewlyEnrolled[[#This Row],[Date of Birth]])/365.25))","v":""}]
[{"$nulls":4},{"$f":"IF(NewlyEnrolled[[#This Row],[Date of Birth]]=\"\",\"\",INT((TODAY()-NewlyEnrolled[[#This Row],[Date of Birth]])/365.25))","v":""}]
[{"$nulls":4},{"$f":"IF(NewlyEnrolled[[#This Row],[Date of Birth]]=\"\",\"\",INT((TODAY()-NewlyEnrolled[[#This Row],[Date of Birth]])/365.25))","v":""}]
[{"$nulls":4},{"$f":"IF(NewlyEnrolled[[#This Row],[Date of Birth]]=\"\",\"\",INT((TODAY()-NewlyEnrolled[[#This Row],[Date of Birth]])/365.25))","v":""}]
[{"$nulls":4},{"$f":"IF(NewlyEnrolled[[#This Row],[Date of Birth]]=\"\",\"\",INT((TODAY()-NewlyEnrolled[[#This Row],[Date of Birth]])/365.25))","v":""}]
[{"$nulls":4},{"$f":"IF(NewlyEnrolled[[#This Row],[Date of Birth]]=\"\",\"\",INT((TODAY()-NewlyEnrolled[[#This Row],[Date of Birth]])/365.25))","v":""}]
[{"$nulls":4},{"$f":"IF(NewlyEnrolled[[#This Row],[Date of Birth]]=\"\",\"\",INT((TODAY()-NewlyEnrolled[[#This Row],[Date of Birth]])/365.25))","v":""}]
[{"$nulls":4},{"$f":"IF(NewlyEnrolled[[#This Row],[Date of Birth]]=\"\",\"\",INT((TODAY()-NewlyEnrolled[[#This Row],[Date of Birth]])/365.25))","v":""}]
[{"$nulls":4},{"$f":"IF(NewlyEnrolled[[#This Row],[Date of Birth]]=\"\",\"\",INT((TODAY()-NewlyEnrolled[[#This Row],[Date of Birth]])/365.25))","v":""}]
[{"$nulls":4},{"$f":"IF(NewlyEnrolled[[#This Row],[Date of Birth]]=\"\",\"\",INT((TODAY()-NewlyEnrolled[[#This Row],[Date of Birth]])/365.25))","v":""}]
[{"$nulls":4},{"$f":"IF(NewlyEnrolled[[#This Row],[Date of Birth]]=\"\",\"\",INT((TODAY()-NewlyEnrolled[[#This Row],[Date of Birth]])/365.25))","v":""}]
[{"$nulls":4},{"$f":"IF(NewlyEnrolled[[#This Row],[Date of Birth]]=\"\",\"\",INT((TODAY()-NewlyEnrolled[[#This Row],[Date of Birth]])/365.25))","v":""}]
[{"$nulls":4},{"$f":"IF(NewlyEnrolled[[#This Row],[Date of Birth]]=\"\",\"\",INT((TODAY()-NewlyEnrolled[[#This Row],[Date of Birth]])/365.25))","v":""}]
[{"$nulls":4},{"$f":"IF(NewlyEnrolled[[#This Row],[Date of Birth]]=\"\",\"\",INT((TODAY()-NewlyEnrolled[[#This Row],[Date of Birth]])/365.25))","v":""}]
[{"$nulls":4},{"$f":"IF(NewlyEnrolled[[#This Row],[Date of Birth]]=\"\",\"\",INT((TODAY()-NewlyEnrolled[[#This Row],[Date of Birth]])/365.25))","v":""}]
[{"$nulls":4},{"$f":"IF(NewlyEnrolled[[#This Row],[Date of Birth]]=\"\",\"\",INT((TODAY()-NewlyEnrolled[[#This Row],[Date of Birth]])/365.25))","v":""}]
[{"$nulls":4},{"$f":"IF(NewlyEnrolled[[#This Row],[Date of Birth]]=\"\",\"\",INT((TODAY()-NewlyEnrolled[[#This Row],[Date of Birth]])/365.25))","v":""}]
[{"$nulls":4},{"$f":"IF(NewlyEnrolled[[#This Row],[Date of Birth]]=\"\",\"\",INT((TODAY()-NewlyEnrolled[[#This Row],[Date of Birth]])/365.25))","v":""}]
[{"$nulls":4},{"$f":"IF(NewlyEnrolled[[#This Row],[Date of Birth]]=\"\",\"\",INT((TODAY()-NewlyEnrolled[[#This Row],[Date of Birth]])/365.25))","v":""}]
[{"$nulls":4},{"$f":"IF(NewlyEnrolled[[#This Row],[Date of Birth]]=\"\",\"\",INT((TODAY()-NewlyEnrolled[[#This Row],[Date of Birth]])/365.25))","v":""}]
[{"$nulls":4},{"$f":"IF(NewlyEnrolled[[#This Row],[Date of Birth]]=\"\",\"\",INT((TODAY()-NewlyEnrolled[[#This Row],[Date of Birth]])/365.25))","v":""}]
[{"$nulls":4},{"$f":"IF(NewlyEnrolled[[#This Row],[Date of Birth]]=\"\",\"\",INT((TODAY()-NewlyEnrolled[[#This Row],[Date of Birth]])/365.25))","v":""}]
[{"$nulls":4},{"$f":"IF(NewlyEnrolled[[#This Row],[Date of Birth]]=\"\",\"\",INT((TODAY()-NewlyEnrolled[[#This Row],[Date of Birth]])/365.25))","v":""}]
[{"$nulls":4},{"$f":"IF(NewlyEnrolled[[#This Row],[Date of Birth]]=\"\",\"\",INT((TODAY()-NewlyEnrolled[[#This Row],[Date of Birth]])/365.25))","v":""}]
[{"$nulls":4},{"$f":"IF(NewlyEnrolled[[#This Row],[Date of Birth]]=\"\",\"\",INT((TODAY()-NewlyEnrolled[[#This Row],[Date of Birth]])/365.25))","v":""}]
[{"$nulls":4},{"$f":"IF(NewlyEnrolled[[#This Row],[Date of Birth]]=\"\",\"\",INT((TODAY()-NewlyEnrolled[[#This Row],[Date of Birth]])/365.25))","v":""}]
[{"$nulls":4},{"$f":"IF(NewlyEnrolled[[#This Row],[Date of Birth]]=\"\",\"\",INT((TODAY()-NewlyEnrolled[[#This Row],[Date of Birth]])/365.25))","v":""}]
[{"$nulls":4},{"$f":"IF(NewlyEnrolled[[#This Row],[Date of Birth]]=\"\",\"\",INT((TODAY()-NewlyEnrolled[[#This Row],[Date of Birth]])/365.25))","v":""}]
[{"$nulls":4},{"$f":"IF(NewlyEnrolled[[#This Row],[Date of Birth]]=\"\",\"\",INT((TODAY()-NewlyEnrolled[[#This Row],[Date of Birth]])/365.25))","v":""}]
[{"$nulls":4},{"$f":"IF(NewlyEnrolled[[#This Row],[Date of Birth]]=\"\",\"\",INT((TODAY()-NewlyEnrolled[[#This Row],[Date of Birth]])/365.25))","v":""}]
[{"$nulls":4},{"$f":"IF(NewlyEnrolled[[#This Row],[Date of Birth]]=\"\",\"\",INT((TODAY()-NewlyEnrolled[[#This Row],[Date of Birth]])/365.25))","v":""}]
[{"$nulls":4},{"$f":"IF(NewlyEnrolled[[#This Row],[Date of Birth]]=\"\",\"\",INT((TODAY()-NewlyEnrolled[[#This Row],[Date of Birth]])/365.25))","v":""}]
[{"$nulls":4},{"$f":"IF(NewlyEnrolled[[#This Row],[Date of Birth]]=\"\",\"\",INT((TODAY()-NewlyEnrolled[[#This Row],[Date of Birth]])/365.25))","v":""}]
[{"$nulls":4},{"$f":"IF(NewlyEnrolled[[#This Row],[Date of Birth]]=\"\",\"\",INT((TODAY()-NewlyEnrolled[[#This Row],[Date of Birth]])/365.25))","v":""}]
[{"$nulls":4},{"$f":"IF(NewlyEnrolled[[#This Row],[Date of Birth]]=\"\",\"\",INT((TODAY()-NewlyEnrolled[[#This Row],[Date of Birth]])/365.25))","v":""}]
[{"$nulls":4},{"$f":"IF(NewlyEnrolled[[#This Row],[Date of Birth]]=\"\",\"\",INT((TODAY()-NewlyEnrolled[[#This Row],[Date of Birth]])/365.25))","v":""}]
[{"$nulls":4},{"$f":"IF(NewlyEnrolled[[#This Row],[Date of Birth]]=\"\",\"\",INT((TODAY()-NewlyEnrolled[[#This Row],[Date of Birth]])/365.25))","v":""}]
[{"$nulls":4},{"$f":"IF(NewlyEnrolled[[#This Row],[Date of Birth]]=\"\",\"\",INT((TODAY()-NewlyEnrolled[[#This Row],[Date of Birth]])/365.25))","v":""}]
[{"$nulls":4},{"$f":"IF(NewlyEnrolled[[#This Row],[Date of Birth]]=\"\",\"\",INT((TODAY()-NewlyEnrolled[[#This Row],[Date of Birth]])/365.25))","v":""}]
[{"$nulls":4},{"$f":"IF(NewlyEnrolled[[#This Row],[Date of Birth]]=\"\",\"\",INT((TODAY()-NewlyEnrolled[[#This Row],[Date of Birth]])/365.25))","v":""}]
[{"$nulls":4},{"$f":"IF(NewlyEnrolled[[#This Row],[Date of Birth]]=\"\",\"\",INT((TODAY()-NewlyEnrolled[[#This Row],[Date of Birth]])/365.25))","v":""}]
[{"$nulls":4},{"$f":"IF(NewlyEnrolled[[#This Row],[Date of Birth]]=\"\",\"\",INT((TODAY()-NewlyEnrolled[[#This Row],[Date of Birth]])/365.25))","v":""}]
[{"$nulls":4},{"$f":"IF(NewlyEnrolled[[#This Row],[Date of Birth]]=\"\",\"\",INT((TODAY()-NewlyEnrolled[[#This Row],[Date of Birth]])/365.25))","v":""}]
[{"$nulls":4},{"$f":"IF(NewlyEnrolled[[#This Row],[Date of Birth]]=\"\",\"\",INT((TODAY()-NewlyEnrolled[[#This Row],[Date of Birth]])/365.25))","v":""}]
[{"$nulls":4},{"$f":"IF(NewlyEnrolled[[#This Row],[Date of Birth]]=\"\",\"\",INT((TODAY()-NewlyEnrolled[[#This Row],[Date of Birth]])/365.25))","v":""}]
[{"$nulls":4},{"$f":"IF(NewlyEnrolled[[#This Row],[Date of Birth]]=\"\",\"\",INT((TODAY()-NewlyEnrolled[[#This Row],[Date of Birth]])/365.25))","v":""}]
[{"$nulls":4},{"$f":"IF(NewlyEnrolled[[#This Row],[Date of Birth]]=\"\",\"\",INT((TODAY()-NewlyEnrolled[[#This Row],[Date of Birth]])/365.25))","v":""}]
[{"$nulls":4},{"$f":"IF(NewlyEnrolled[[#This Row],[Date of Birth]]=\"\",\"\",INT((TODAY()-NewlyEnrolled[[#This Row],[Date of Birth]])/365.25))","v":""}]
[{"$nulls":4},{"$f":"IF(NewlyEnrolled[[#This Row],[Date of Birth]]=\"\",\"\",INT((TODAY()-NewlyEnrolled[[#This Row],[Date of Birth]])/365.25))","v":""}]
[{"$nulls":4},{"$f":"IF(NewlyEnrolled[[#This Row],[Date of Birth]]=\"\",\"\",INT((TODAY()-NewlyEnrolled[[#This Row],[Date of Birth]])/365.25))","v":""}]
[{"$nulls":4},{"$f":"IF(NewlyEnrolled[[#This Row],[Date of Birth]]=\"\",\"\",INT((TODAY()-NewlyEnrolled[[#This Row],[Date of Birth]])/365.25))","v":""}]
[{"$nulls":4},{"$f":"IF(NewlyEnrolled[[#This Row],[Date of Birth]]=\"\",\"\",INT((TODAY()-NewlyEnrolled[[#This Row],[Date of Birth]])/365.25))","v":""}]
[{"$nulls":4},{"$f":"IF(NewlyEnrolled[[#This Row],[Date of Birth]]=\"\",\"\",INT((TODAY()-NewlyEnrolled[[#This Row],[Date of Birth]])/365.25))","v":""}]
[{"$nulls":4},{"$f":"IF(NewlyEnrolled[[#This Row],[Date of Birth]]=\"\",\"\",INT((TODAY()-NewlyEnrolled[[#This Row],[Date of Birth]])/365.25))","v":""}]
[{"$nulls":4},{"$f":"IF(NewlyEnrolled[[#This Row],[Date of Birth]]=\"\",\"\",INT((TODAY()-NewlyEnrolled[[#This Row],[Date of Birth]])/365.25))","v":""}]
[{"$nulls":4},{"$f":"IF(NewlyEnrolled[[#This Row],[Date of Birth]]=\"\",\"\",INT((TODAY()-NewlyEnrolled[[#This Row],[Date of Birth]])/365.25))","v":""}]
[{"$nulls":4},{"$f":"IF(NewlyEnrolled[[#This Row],[Date of Birth]]=\"\",\"\",INT((TODAY()-NewlyEnrolled[[#This Row],[Date of Birth]])/365.25))","v":""}]
[{"$nulls":4},{"$f":"IF(NewlyEnrolled[[#This Row],[Date of Birth]]=\"\",\"\",INT((TODAY()-NewlyEnrolled[[#This Row],[Date of Birth]])/365.25))","v":""}]
[{"$nulls":4},{"$f":"IF(NewlyEnrolled[[#This Row],[Date of Birth]]=\"\",\"\",INT((TODAY()-NewlyEnrolled[[#This Row],[Date of Birth]])/365.25))","v":""}]
[{"$nulls":4},{"$f":"IF(NewlyEnrolled[[#This Row],[Date of Birth]]=\"\",\"\",INT((TODAY()-NewlyEnrolled[[#This Row],[Date of Birth]])/365.25))","v":""}]
[{"$nulls":4},{"$f":"IF(NewlyEnrolled[[#This Row],[Date of Birth]]=\"\",\"\",INT((TODAY()-NewlyEnrolled[[#This Row],[Date of Birth]])/365.25))","v":""}]
[{"$nulls":4},{"$f":"IF(NewlyEnrolled[[#This Row],[Date of Birth]]=\"\",\"\",INT((TODAY()-NewlyEnrolled[[#This Row],[Date of Birth]])/365.25))","v":""}]
[{"$nulls":4},{"$f":"IF(NewlyEnrolled[[#This Row],[Date of Birth]]=\"\",\"\",INT((TODAY()-NewlyEnrolled[[#This Row],[Date of Birth]])/365.25))","v":""}]
[{"$nulls":4},{"$f":"IF(NewlyEnrolled[[#This Row],[Date of Birth]]=\"\",\"\",INT((TODAY()-NewlyEnrolled[[#This Row],[Date of Birth]])/365.25))","v":""}]
[{"$nulls":4},{"$f":"IF(NewlyEnrolled[[#This Row],[Date of Birth]]=\"\",\"\",INT((TODAY()-NewlyEnrolled[[#This Row],[Date of Birth]])/365.25))","v":""}]
[{"$nulls":4},{"$f":"IF(NewlyEnrolled[[#This Row],[Date of Birth]]=\"\",\"\",INT((TODAY()-NewlyEnrolled[[#This Row],[Date of Birth]])/365.25))","v":""}]
[{"$nulls":4},{"$f":"IF(NewlyEnrolled[[#This Row],[Date of Birth]]=\"\",\"\",INT((TODAY()-NewlyEnrolled[[#This Row],[Date of Birth]])/365.25))","v":""}]
[{"$nulls":4},{"$f":"IF(NewlyEnrolled[[#This Row],[Date of Birth]]=\"\",\"\",INT((TODAY()-NewlyEnrolled[[#This Row],[Date of Birth]])/365.25))","v":""}]
[{"$nulls":4},{"$f":"IF(NewlyEnrolled[[#This Row],[Date of Birth]]=\"\",\"\",INT((TODAY()-NewlyEnrolled[[#This Row],[Date of Birth]])/365.25))","v":""}]
[{"$nulls":4},{"$f":"IF(NewlyEnrolled[[#This Row],[Date of Birth]]=\"\",\"\",INT((TODAY()-NewlyEnrolled[[#This Row],[Date of Birth]])/365.25))","v":""}]
[{"$nulls":4},{"$f":"IF(NewlyEnrolled[[#This Row],[Date of Birth]]=\"\",\"\",INT((TODAY()-NewlyEnrolled[[#This Row],[Date of Birth]])/365.25))","v":""}]
[{"$nulls":4},{"$f":"IF(NewlyEnrolled[[#This Row],[Date of Birth]]=\"\",\"\",INT((TODAY()-NewlyEnrolled[[#This Row],[Date of Birth]])/365.25))","v":""}]
[{"$nulls":4},{"$f":"IF(NewlyEnrolled[[#This Row],[Date of Birth]]=\"\",\"\",INT((TODAY()-NewlyEnrolled[[#This Row],[Date of Birth]])/365.25))","v":""}]
[{"$nulls":4},{"$f":"IF(NewlyEnrolled[[#This Row],[Date of Birth]]=\"\",\"\",INT((TODAY()-NewlyEnrolled[[#This Row],[Date of Birth]])/365.25))","v":""}]
[{"$nulls":4},{"$f":"IF(NewlyEnrolled[[#This Row],[Date of Birth]]=\"\",\"\",INT((TODAY()-NewlyEnrolled[[#This Row],[Date of Birth]])/365.25))","v":""}]
[{"$nulls":4},{"$f":"IF(NewlyEnrolled[[#This Row],[Date of Birth]]=\"\",\"\",INT((TODAY()-NewlyEnrolled[[#This Row],[Date of Birth]])/365.25))","v":""}]
[{"$nulls":4},{"$f":"IF(NewlyEnrolled[[#This Row],[Date of Birth]]=\"\",\"\",INT((TODAY()-NewlyEnrolled[[#This Row],[Date of Birth]])/365.25))","v":""}]
[{"$nulls":4},{"$f":"IF(NewlyEnrolled[[#This Row],[Date of Birth]]=\"\",\"\",INT((TODAY()-NewlyEnrolled[[#This Row],[Date of Birth]])/365.25))","v":""}]
[{"$nulls":4},{"$f":"IF(NewlyEnrolled[[#This Row],[Date of Birth]]=\"\",\"\",INT((TODAY()-NewlyEnrolled[[#This Row],[Date of Birth]])/365.25))","v":""}]
[{"$nulls":4},{"$f":"IF(NewlyEnrolled[[#This Row],[Date of Birth]]=\"\",\"\",INT((TODAY()-NewlyEnrolled[[#This Row],[Date of Birth]])/365.25))","v":""}]
[{"$nulls":4},{"$f":"IF(NewlyEnrolled[[#This Row],[Date of Birth]]=\"\",\"\",INT((TODAY()-NewlyEnrolled[[#This Row],[Date of Birth]])/365.25))","v":""}]
[{"$nulls":4},{"$f":"IF(NewlyEnrolled[[#This Row],[Date of Birth]]=\"\",\"\",INT((TODAY()-NewlyEnrolled[[#This Row],[Date of Birth]])/365.25))","v":""}]
[{"$nulls":4},{"$f":"IF(NewlyEnrolled[[#This Row],[Date of Birth]]=\"\",\"\",INT((TODAY()-NewlyEnrolled[[#This Row],[Date of Birth]])/365.25))","v":""}]
[{"$nulls":4},{"$f":"IF(NewlyEnrolled[[#This Row],[Date of Birth]]=\"\",\"\",INT((TODAY()-NewlyEnrolled[[#This Row],[Date of Birth]])/365.25))","v":""}]
[{"$nulls":4},{"$f":"IF(NewlyEnrolled[[#This Row],[Date of Birth]]=\"\",\"\",INT((TODAY()-NewlyEnrolled[[#This Row],[Date of Birth]])/365.25))","v":""}]
[{"$nulls":4},{"$f":"IF(NewlyEnrolled[[#This Row],[Date of Birth]]=\"\",\"\",INT((TODAY()-NewlyEnrolled[[#This Row],[Date of Birth]])/365.25))","v":""}]
[{"$nulls":4},{"$f":"IF(NewlyEnrolled[[#This Row],[Date of Birth]]=\"\",\"\",INT((TODAY()-NewlyEnrolled[[#This Row],[Date of Birth]])/365.25))","v":""}]
[{"$nulls":4},{"$f":"IF(NewlyEnrolled[[#This Row],[Date of Birth]]=\"\",\"\",INT((TODAY()-NewlyEnrolled[[#This Row],[Date of Birth]])/365.25))","v":""}]
[{"$nulls":4},{"$f":"IF(NewlyEnrolled[[#This Row],[Date of Birth]]=\"\",\"\",INT((TODAY()-NewlyEnrolled[[#This Row],[Date of Birth]])/365.25))","v":""}]
[{"$nulls":4},{"$f":"IF(NewlyEnrolled[[#This Row],[Date of Birth]]=\"\",\"\",INT((TODAY()-NewlyEnrolled[[#This Row],[Date of Birth]])/365.25))","v":""}]
[{"$nulls":4},{"$f":"IF(NewlyEnrolled[[#This Row],[Date of Birth]]=\"\",\"\",INT((TODAY()-NewlyEnrolled[[#This Row],[Date of Birth]])/365.25))","v":""}]
[{"$nulls":4},{"$f":"IF(NewlyEnrolled[[#This Row],[Date of Birth]]=\"\",\"\",INT((TODAY()-NewlyEnrolled[[#This Row],[Date of Birth]])/365.25))","v":""}]
[{"$nulls":4},{"$f":"IF(NewlyEnrolled[[#This Row],[Date of Birth]]=\"\",\"\",INT((TODAY()-NewlyEnrolled[[#This Row],[Date of Birth]])/365.25))","v":""}]
[{"$nulls":4},{"$f":"IF(NewlyEnrolled[[#This Row],[Date of Birth]]=\"\",\"\",INT((TODAY()-NewlyEnrolled[[#This Row],[Date of Birth]])/365.25))","v":""}]
[{"$nulls":4},{"$f":"IF(NewlyEnrolled[[#This Row],[Date of Birth]]=\"\",\"\",INT((TODAY()-NewlyEnrolled[[#This Row],[Date of Birth]])/365.25))","v":""}]
[{"$nulls":4},{"$f":"IF(NewlyEnrolled[[#This Row],[Date of Birth]]=\"\",\"\",INT((TODAY()-NewlyEnrolled[[#This Row],[Date of Birth]])/365.25))","v":""}]
[{"$nulls":4},{"$f":"IF(NewlyEnrolled[[#This Row],[Date of Birth]]=\"\",\"\",INT((TODAY()-NewlyEnrolled[[#This Row],[Date of Birth]])/365.25))","v":""}]
[{"$nulls":4},{"$f":"IF(NewlyEnrolled[[#This Row],[Date of Birth]]=\"\",\"\",INT((TODAY()-NewlyEnrolled[[#This Row],[Date of Birth]])/365.25))","v":""}]
[{"$nulls":4},{"$f":"IF(NewlyEnrolled[[#This Row],[Date of Birth]]=\"\",\"\",INT((TODAY()-NewlyEnrolled[[#This Row],[Date of Birth]])/365.25))","v":""}]
[{"$nulls":4},{"$f":"IF(NewlyEnrolled[[#This Row],[Date of Birth]]=\"\",\"\",INT((TODAY()-NewlyEnrolled[[#This Row],[Date of Birth]])/365.25))","v":""}]
[{"$nulls":4},{"$f":"IF(NewlyEnrolled[[#This Row],[Date of Birth]]=\"\",\"\",INT((TODAY()-NewlyEnrolled[[#This Row],[Date of Birth]])/365.25))","v":""}]
[{"$nulls":4},{"$f":"IF(NewlyEnrolled[[#This Row],[Date of Birth]]=\"\",\"\",INT((TODAY()-NewlyEnrolled[[#This Row],[Date of Birth]])/365.25))","v":""}]
[{"$nulls":4},{"$f":"IF(NewlyEnrolled[[#This Row],[Date of Birth]]=\"\",\"\",INT((TODAY()-NewlyEnrolled[[#This Row],[Date of Birth]])/365.25))","v":""}]
[{"$nulls":4},{"$f":"IF(NewlyEnrolled[[#This Row],[Date of Birth]]=\"\",\"\",INT((TODAY()-NewlyEnrolled[[#This Row],[Date of Birth]])/365.25))","v":""}]
[{"$nulls":4},{"$f":"IF(NewlyEnrolled[[#This Row],[Date of Birth]]=\"\",\"\",INT((TODAY()-NewlyEnrolled[[#This Row],[Date of Birth]])/365.25))","v":""}]
[{"$nulls":4},{"$f":"IF(NewlyEnrolled[[#This Row],[Date of Birth]]=\"\",\"\",INT((TODAY()-NewlyEnrolled[[#This Row],[Date of Birth]])/365.25))","v":""}]
[{"$nulls":4},{"$f":"IF(NewlyEnrolled[[#This Row],[Date of Birth]]=\"\",\"\",INT((TODAY()-NewlyEnrolled[[#This Row],[Date of Birth]])/365.25))","v":""}]
[{"$nulls":4},{"$f":"IF(NewlyEnrolled[[#This Row],[Date of Birth]]=\"\",\"\",INT((TODAY()-NewlyEnrolled[[#This Row],[Date of Birth]])/365.25))","v":""}]
[{"$nulls":4},{"$f":"IF(NewlyEnrolled[[#This Row],[Date of Birth]]=\"\",\"\",INT((TODAY()-NewlyEnrolled[[#This Row],[Date of Birth]])/365.25))","v":""}]
[{"$nulls":4},{"$f":"IF(NewlyEnrolled[[#This Row],[Date of Birth]]=\"\",\"\",INT((TODAY()-NewlyEnrolled[[#This Row],[Date of Birth]])/365.25))","v":""}]
[{"$nulls":4},{"$f":"IF(NewlyEnrolled[[#This Row],[Date of Birth]]=\"\",\"\",INT((TODAY()-NewlyEnrolled[[#This Row],[Date of Birth]])/365.25))","v":""}]
[{"$nulls":4},{"$f":"IF(NewlyEnrolled[[#This Row],[Date of Birth]]=\"\",\"\",INT((TODAY()-NewlyEnrolled[[#This Row],[Date of Birth]])/365.25))","v":""}]
[{"$nulls":4},{"$f":"IF(NewlyEnrolled[[#This Row],[Date of Birth]]=\"\",\"\",INT((TODAY()-NewlyEnrolled[[#This Row],[Date of Birth]])/365.25))","v":""}]
[{"$nulls":4},{"$f":"IF(NewlyEnrolled[[#This Row],[Date of Birth]]=\"\",\"\",INT((TODAY()-NewlyEnrolled[[#This Row],[Date of Birth]])/365.25))","v":""}]
[{"$nulls":4},{"$f":"IF(NewlyEnrolled[[#This Row],[Date of Birth]]=\"\",\"\",INT((TODAY()-NewlyEnrolled[[#This Row],[Date of Birth]])/365.25))","v":""}]
[{"$nulls":4},{"$f":"IF(NewlyEnrolled[[#This Row],[Date of Birth]]=\"\",\"\",INT((TODAY()-NewlyEnrolled[[#This Row],[Date of Birth]])/365.25))","v":""}]
[{"$nulls":4},{"$f":"IF(NewlyEnrolled[[#This Row],[Date of Birth]]=\"\",\"\",INT((TODAY()-NewlyEnrolled[[#This Row],[Date of Birth]])/365.25))","v":""}]
[{"$nulls":4},{"$f":"IF(NewlyEnrolled[[#This Row],[Date of Birth]]=\"\",\"\",INT((TODAY()-NewlyEnrolled[[#This Row],[Date of Birth]])/365.25))","v":""}]
[{"$nulls":4},{"$f":"IF(NewlyEnrolled[[#This Row],[Date of Birth]]=\"\",\"\",INT((TODAY()-NewlyEnrolled[[#This Row],[Date of Birth]])/365.25))","v":""}]
[{"$nulls":4},{"$f":"IF(NewlyEnrolled[[#This Row],[Date of Birth]]=\"\",\"\",INT((TODAY()-NewlyEnrolled[[#This Row],[Date of Birth]])/365.25))","v":""}]
[{"$nulls":4},{"$f":"IF(NewlyEnrolled[[#This Row],[Date of Birth]]=\"\",\"\",INT((TODAY()-NewlyEnrolled[[#This Row],[Date of Birth]])/365.25))","v":""}]
[{"$nulls":4},{"$f":"IF(NewlyEnrolled[[#This Row],[Date of Birth]]=\"\",\"\",INT((TODAY()-NewlyEnrolled[[#This Row],[Date of Birth]])/365.25))","v":""}]
[{"$nulls":4},{"$f":"IF(NewlyEnrolled[[#This Row],[Date of Birth]]=\"\",\"\",INT((TODAY()-NewlyEnrolled[[#This Row],[Date of Birth]])/365.25))","v":""}]
[{"$nulls":4},{"$f":"IF(NewlyEnrolled[[#This Row],[Date of Birth]]=\"\",\"\",INT((TODAY()-NewlyEnrolled[[#This Row],[Date of Birth]])/365.25))","v":""}]
[{"$nulls":4},{"$f":"IF(NewlyEnrolled[[#This Row],[Date of Birth]]=\"\",\"\",INT((TODAY()-NewlyEnrolled[[#This Row],[Date of Birth]])/365.25))","v":""}]
[{"$nulls":4},{"$f":"IF(NewlyEnrolled[[#This Row],[Date of Birth]]=\"\",\"\",INT((TODAY()-NewlyEnrolled[[#This Row],[Date of Birth]])/365.25))","v":""}]
[{"$nulls":4},{"$f":"IF(NewlyEnrolled[[#This Row],[Date of Birth]]=\"\",\"\",INT((TODAY()-NewlyEnrolled[[#This Row],[Date of Birth]])/365.25))","v":""}]
[{"$nulls":4},{"$f":"IF(NewlyEnrolled[[#This Row],[Date of Birth]]=\"\",\"\",INT((TODAY()-NewlyEnrolled[[#This Row],[Date of Birth]])/365.25))","v":""}]
[{"$nulls":4},{"$f":"IF(NewlyEnrolled[[#This Row],[Date of Birth]]=\"\",\"\",INT((TODAY()-NewlyEnrolled[[#This Row],[Date of Birth]])/365.25))","v":""}]
[{"$nulls":4},{"$f":"IF(NewlyEnrolled[[#This Row],[Date of Birth]]=\"\",\"\",INT((TODAY()-NewlyEnrolled[[#This Row],[Date of Birth]])/365.25))","v":""}]
[{"$nulls":4},{"$f":"IF(NewlyEnrolled[[#This Row],[Date of Birth]]=\"\",\"\",INT((TODAY()-NewlyEnrolled[[#This Row],[Date of Birth]])/365.25))","v":""}]
[{"$nulls":4},{"$f":"IF(NewlyEnrolled[[#This Row],[Date of Birth]]=\"\",\"\",INT((TODAY()-NewlyEnrolled[[#This Row],[Date of Birth]])/365.25))","v":""}]
[{"$nulls":4},{"$f":"IF(NewlyEnrolled[[#This Row],[Date of Birth]]=\"\",\"\",INT((TODAY()-NewlyEnrolled[[#This Row],[Date of Birth]])/365.25))","v":""}]
[{"$nulls":4},{"$f":"IF(NewlyEnrolled[[#This Row],[Date of Birth]]=\"\",\"\",INT((TODAY()-NewlyEnrolled[[#This Row],[Date of Birth]])/365.25))","v":""}]
[{"$nulls":4},{"$f":"IF(NewlyEnrolled[[#This Row],[Date of Birth]]=\"\",\"\",INT((TODAY()-NewlyEnrolled[[#This Row],[Date of Birth]])/365.25))","v":""}]
[{"$nulls":4},{"$f":"IF(NewlyEnrolled[[#This Row],[Date of Birth]]=\"\",\"\",INT((TODAY()-NewlyEnrolled[[#This Row],[Date of Birth]])/365.25))","v":""}]
[{"$nulls":4},{"$f":"IF(NewlyEnrolled[[#This Row],[Date of Birth]]=\"\",\"\",INT((TODAY()-NewlyEnrolled[[#This Row],[Date of Birth]])/365.25))","v":""}]
[{"$nulls":4},{"$f":"IF(NewlyEnrolled[[#This Row],[Date of Birth]]=\"\",\"\",INT((TODAY()-NewlyEnrolled[[#This Row],[Date of Birth]])/365.25))","v":""}]
[{"$nulls":4},{"$f":"IF(NewlyEnrolled[[#This Row],[Date of Birth]]=\"\",\"\",INT((TODAY()-NewlyEnrolled[[#This Row],[Date of Birth]])/365.25))","v":""}]
[{"$nulls":4},{"$f":"IF(NewlyEnrolled[[#This Row],[Date of Birth]]=\"\",\"\",INT((TODAY()-NewlyEnrolled[[#This Row],[Date of Birth]])/365.25))","v":""}]
[{"$nulls":4},{"$f":"IF(NewlyEnrolled[[#This Row],[Date of Birth]]=\"\",\"\",INT((TODAY()-NewlyEnrolled[[#This Row],[Date of Birth]])/365.25))","v":""}]
[{"$nulls":4},{"$f":"IF(NewlyEnrolled[[#This Row],[Date of Birth]]=\"\",\"\",INT((TODAY()-NewlyEnrolled[[#This Row],[Date of Birth]])/365.25))","v":""}]
[{"$nulls":4},{"$f":"IF(NewlyEnrolled[[#This Row],[Date of Birth]]=\"\",\"\",INT((TODAY()-NewlyEnrolled[[#This Row],[Date of Birth]])/365.25))","v":""}]
[{"$nulls":4},{"$f":"IF(NewlyEnrolled[[#This Row],[Date of Birth]]=\"\",\"\",INT((TODAY()-NewlyEnrolled[[#This Row],[Date of Birth]])/365.25))","v":""}]
[{"$nulls":4},{"$f":"IF(NewlyEnrolled[[#This Row],[Date of Birth]]=\"\",\"\",INT((TODAY()-NewlyEnrolled[[#This Row],[Date of Birth]])/365.25))","v":""}]
[{"$nulls":4},{"$f":"IF(NewlyEnrolled[[#This Row],[Date of Birth]]=\"\",\"\",INT((TODAY()-NewlyEnrolled[[#This Row],[Date of Birth]])/365.25))","v":""}]
[{"$nulls":4},{"$f":"IF(NewlyEnrolled[[#This Row],[Date of Birth]]=\"\",\"\",INT((TODAY()-NewlyEnrolled[[#This Row],[Date of Birth]])/365.25))","v":""}]
[{"$nulls":4},{"$f":"IF(NewlyEnrolled[[#This Row],[Date of Birth]]=\"\",\"\",INT((TODAY()-NewlyEnrolled[[#This Row],[Date of Birth]])/365.25))","v":""}]
[{"$nulls":4},{"$f":"IF(NewlyEnrolled[[#This Row],[Date of Birth]]=\"\",\"\",INT((TODAY()-NewlyEnrolled[[#This Row],[Date of Birth]])/365.25))","v":""}]
[{"$nulls":4},{"$f":"IF(NewlyEnrolled[[#This Row],[Date of Birth]]=\"\",\"\",INT((TODAY()-NewlyEnrolled[[#This Row],[Date of Birth]])/365.25))","v":""}]
[{"$nulls":4},{"$f":"IF(NewlyEnrolled[[#This Row],[Date of Birth]]=\"\",\"\",INT((TODAY()-NewlyEnrolled[[#This Row],[Date of Birth]])/365.25))","v":""}]
[{"$nulls":4},{"$f":"IF(NewlyEnrolled[[#This Row],[Date of Birth]]=\"\",\"\",INT((TODAY()-NewlyEnrolled[[#This Row],[Date of Birth]])/365.25))","v":""}]
[{"$nulls":4},{"$f":"IF(NewlyEnrolled[[#This Row],[Date of Birth]]=\"\",\"\",INT((TODAY()-NewlyEnrolled[[#This Row],[Date of Birth]])/365.25))","v":""}]
[{"$nulls":4},{"$f":"IF(NewlyEnrolled[[#This Row],[Date of Birth]]=\"\",\"\",INT((TODAY()-NewlyEnrolled[[#This Row],[Date of Birth]])/365.25))","v":""}]
[{"$nulls":4},{"$f":"IF(NewlyEnrolled[[#This Row],[Date of Birth]]=\"\",\"\",INT((TODAY()-NewlyEnrolled[[#This Row],[Date of Birth]])/365.25))","v":""}]
[{"$nulls":4},{"$f":"IF(NewlyEnrolled[[#This Row],[Date of Birth]]=\"\",\"\",INT((TODAY()-NewlyEnrolled[[#This Row],[Date of Birth]])/365.25))","v":""}]
[{"$nulls":4},{"$f":"IF(NewlyEnrolled[[#This Row],[Date of Birth]]=\"\",\"\",INT((TODAY()-NewlyEnrolled[[#This Row],[Date of Birth]])/365.25))","v":""}]
[{"$nulls":4},{"$f":"IF(NewlyEnrolled[[#This Row],[Date of Birth]]=\"\",\"\",INT((TODAY()-NewlyEnrolled[[#This Row],[Date of Birth]])/365.25))","v":""}]
[{"$nulls":4},{"$f":"IF(NewlyEnrolled[[#This Row],[Date of Birth]]=\"\",\"\",INT((TODAY()-NewlyEnrolled[[#This Row],[Date of Birth]])/365.25))","v":""}]
[{"$nulls":4},{"$f":"IF(NewlyEnrolled[[#This Row],[Date of Birth]]=\"\",\"\",INT((TODAY()-NewlyEnrolled[[#This Row],[Date of Birth]])/365.25))","v":""}]
[{"$nulls":4},{"$f":"IF(NewlyEnrolled[[#This Row],[Date of Birth]]=\"\",\"\",INT((TODAY()-NewlyEnrolled[[#This Row],[Date of Birth]])/365.25))","v":""}]
[{"$nulls":4},{"$f":"IF(NewlyEnrolled[[#This Row],[Date of Birth]]=\"\",\"\",INT((TODAY()-NewlyEnrolled[[#This Row],[Date of Birth]])/365.25))","v":""}]
[{"$nulls":4},{"$f":"IF(NewlyEnrolled[[#This Row],[Date of Birth]]=\"\",\"\",INT((TODAY()-NewlyEnrolled[[#This Row],[Date of Birth]])/365.25))","v":""}]
[{"$nulls":4},{"$f":"IF(NewlyEnrolled[[#This Row],[Date of Birth]]=\"\",\"\",INT((TODAY()-NewlyEnrolled[[#This Row],[Date of Birth]])/365.25))","v":""}]
[{"$nulls":4},{"$f":"IF(NewlyEnrolled[[#This Row],[Date of Birth]]=\"\",\"\",INT((TODAY()-NewlyEnrolled[[#This Row],[Date of Birth]])/365.25))","v":""}]
[{"$nulls":4},{"$f":"IF(NewlyEnrolled[[#This Row],[Date of Birth]]=\"\",\"\",INT((TODAY()-NewlyEnrolled[[#This Row],[Date of Birth]])/365.25))","v":""}]
[{"$nulls":4},{"$f":"IF(NewlyEnrolled[[#This Row],[Date of Birth]]=\"\",\"\",INT((TODAY()-NewlyEnrolled[[#This Row],[Date of Birth]])/365.25))","v":""}]
[{"$nulls":4},{"$f":"IF(NewlyEnrolled[[#This Row],[Date of Birth]]=\"\",\"\",INT((TODAY()-NewlyEnrolled[[#This Row],[Date of Birth]])/365.25))","v":""}]
[{"$nulls":4},{"$f":"IF(NewlyEnrolled[[#This Row],[Date of Birth]]=\"\",\"\",INT((TODAY()-NewlyEnrolled[[#This Row],[Date of Birth]])/365.25))","v":""}]
[{"$nulls":4},{"$f":"IF(NewlyEnrolled[[#This Row],[Date of Birth]]=\"\",\"\",INT((TODAY()-NewlyEnrolled[[#This Row],[Date of Birth]])/365.25))","v":""}]
[{"$nulls":4},{"$f":"IF(NewlyEnrolled[[#This Row],[Date of Birth]]=\"\",\"\",INT((TODAY()-NewlyEnrolled[[#This Row],[Date of Birth]])/365.25))","v":""}]

{"sheet":"Children Previously Enrolled","index":1,"n_rows":6,"n_cols":8,"rows_kept":6,"merged":[[2,2,2,3],[3,2,3,3]]}
[null,null,{"$error":"#VALUE!"},"Independent Schools - Enrolment List",{"$nulls":3},{"$error":"#VALUE!"}]
[]
[null,"School Year"]
[null,"School Name"]
[]
[null,"Student Surname","Student First Name","Date of Birth","School cycle Completed "," Current Provision","Current School Name","Notes (Additional Information if Required)"]

{"sheet":"ReferenceLists","index":2,"n_rows":18,"n_cols":4,"rows_kept":18,"hidden":true}
[]
[]
[]
["ClassList","FormSubmitted","CurrentProvision","CycleCompleted"]
["N/A","Yes","DE School","Yes"]
["Senior Infants","No","Independent School","No"]
["1st Class","N/A","Left Jurisdiction"]
["2nd Class",null,"Home Education"]
["3rd Class",null,"Unknown"]
["4th Class"]
["5th Class"]
["6th Class"]
["1st Year"]
["2nd Year"]
["3rd Year"]
["4th Year"]
["5th Year"]
["6th Year"]